{"text_format":"1","workbook":"xlsx","n_sheets":2,"sheets":["READ-IT","Lieferant"],"not_rendered":{"charts":0,"images":3,"macros":0,"external_links":0,"defined_names":4,"comments":0,"pivot_tables":0},"unopened":[],"bounds":{"document_bytes":16777216,"sheet_cells":100000,"rows_first":2000,"rows_last":500,"rows_between":2000,"halvings":0,"cell_chars":16384,"cell_head_chars":4096},"cells_cut":0,"cells_raw":0,"read":"whole","date_system":"1900"}

{"sheet":"READ-IT","index":0,"n_rows":0,"n_cols":0,"rows_kept":0,"cut":false,"hidden":false,"merged":[]}

{"sheet":"Lieferant","index":1,"n_rows":127,"n_cols":29,"rows_kept":127,"cut":false,"hidden":false,"merged":[[2,0,2,2],[3,0,3,2],[2,3,2,5],[3,3,3,5],[0,7,0,10],[1,7,1,10],[2,7,2,10],[3,7,3,10]]}
[null,null,null,null,null,null,"Anbieter:",null,null,null,null,"\"C\" - Unbedingt bei Inbetriebnahme erforderlich"]
[null,null,null,null,null,null,"Angebotsnummer:",null,null,null,null,null,"\"W\" - Verschleißteile"]
["Hatch Küttner-Auftrags-Nr.",null,null,null,null,null,"Angebots-Datum:",null,null,null,null,null,null,"\"S\" - Strategische Ersatzteile (Anlagenstillstand, Langläufer)"]
["Anlagenteil",null,null,null,null,null,"Preisgültigkeit:",null,null,null,null,null,null,null,"\"T\" - Ersatzteile für den 2-jährigen Betrieb"]
["Pos.","eingebaute Menge","empfohlene Menge","Einheit\n[Stück]\n[m]\n[m2]\n[Satz]\n","Artikel-Nr.","TAG-, TKS-, \nAKZ-Nr.","Benennung","Typ","Abmessungen (mm)","Zeichnung","Gewicht je Stück (KG)","C\n","W\n","S\n","T\n","Lieferzeit Wochen","Lieferant","EK Preis brutto/Einheit\n(ohne MwSt)","Rabatt %","EK-Preis rabattiert/Einheit\n(ohne MwSt.)","Fehlermeldung",null,null,null,null,null,"empfohlene Menge fehlt!","Priorität fehlt!","Lieferzeit fehlt!"]
[1,null,null,null,null,null,null,null,null,null,null,null,null,null,null,null,null,null,null,{"$f":"Tabelle2[[#This Row],[EK Preis brutto/Einheit\n(ohne MwSt)]]*(100%-Tabelle2[[#This Row],[Rabatt %]])","v":0},{"$f":"IF(Tabelle2[[#This Row],[eingebaute Menge]]>0,IF(ISBLANK(Tabelle2[[#This Row],[empfohlene Menge]]),$AA$5,\nIF(AND(ISBLANK(Tabelle2[[#This Row],[C\n]])),\nIF(AND(ISBLANK(Tabelle2[[#This Row],[W\n]])),\nIF(AND(ISBLANK(Tabelle2[[#This Row],[S\n]])),\nIF(AND(ISBLANK(Tabelle2[[#This Row],[T\n]])),$AB$5,))))))","v":false},null," "]
[{"$f":"A6+1","v":2},null,null,null,null,null,null,null,null,null,null,null,null,null,null,null,null,null,null,{"$f":"Tabelle2[[#This Row],[EK Preis brutto/Einheit\n(ohne MwSt)]]*(100%-Tabelle2[[#This Row],[Rabatt %]])","v":0},{"$f":"IF(Tabelle2[[#This Row],[eingebaute Menge]]>0,IF(ISBLANK(Tabelle2[[#This Row],[empfohlene Menge]]),$AA$5,\nIF(AND(ISBLANK(Tabelle2[[#This Row],[C\n]])),\nIF(AND(ISBLANK(Tabelle2[[#This Row],[W\n]])),\nIF(AND(ISBLANK(Tabelle2[[#This Row],[S\n]])),\nIF(AND(ISBLANK(Tabelle2[[#This Row],[T\n]])),$AB$5,))))))","v":false}]
[3,null,null,null,null,null,null,null,null,null,null,null,null,null,null,null,null,null,null,{"$f":"Tabelle2[[#This Row],[EK Preis brutto/Einheit\n(ohne MwSt)]]*(100%-Tabelle2[[#This Row],[Rabatt %]])","v":0},{"$f":"IF(Tabelle2[[#This Row],[eingebaute Menge]]>0,IF(ISBLANK(Tabelle2[[#This Row],[empfohlene Menge]]),$AA$5,\nIF(AND(ISBLANK(Tabelle2[[#This Row],[C\n]])),\nIF(AND(ISBLANK(Tabelle2[[#This Row],[W\n]])),\nIF(AND(ISBLANK(Tabelle2[[#This Row],[S\n]])),\nIF(AND(ISBLANK(Tabelle2[[#This Row],[T\n]])),$AB$5,))))))","v":false}]
[4,null,null,null,null,null,null,null,null,null,null,null,null,null,null,null,null,null,null,{"$f":"Tabelle2[[#This Row],[EK Preis brutto/Einheit\n(ohne MwSt)]]*(100%-Tabelle2[[#This Row],[Rabatt %]])","v":0},{"$f":"IF(Tabelle2[[#This Row],[eingebaute Menge]]>0,IF(ISBLANK(Tabelle2[[#This Row],[empfohlene Menge]]),$AA$5,\nIF(AND(ISBLANK(Tabelle2[[#This Row],[C\n]])),\nIF(AND(ISBLANK(Tabelle2[[#This Row],[W\n]])),\nIF(AND(ISBLANK(Tabelle2[[#This Row],[S\n]])),\nIF(AND(ISBLANK(Tabelle2[[#This Row],[T\n]])),$AB$5,))))))","v":false}]
[5,null,null,null,null,null,null,null,null,null,null,null,null,null,null,null,null,null,null,{"$f":"Tabelle2[[#This Row],[EK Preis brutto/Einheit\n(ohne MwSt)]]*(100%-Tabelle2[[#This Row],[Rabatt %]])","v":0},{"$f":"IF(Tabelle2[[#This Row],[eingebaute Menge]]>0,IF(ISBLANK(Tabelle2[[#This Row],[empfohlene Menge]]),$AA$5,\nIF(AND(ISBLANK(Tabelle2[[#This Row],[C\n]])),\nIF(AND(ISBLANK(Tabelle2[[#This Row],[W\n]])),\nIF(AND(ISBLANK(Tabelle2[[#This Row],[S\n]])),\nIF(AND(ISBLANK(Tabelle2[[#This Row],[T\n]])),$AB$5,))))))","v":false}]
[6,null,null,null,null,null,null,null,null,null,null,null,null,null,null,null,null,null,null,{"$f":"Tabelle2[[#This Row],[EK Preis brutto/Einheit\n(ohne MwSt)]]*(100%-Tabelle2[[#This Row],[Rabatt %]])","v":0},{"$f":"IF(Tabelle2[[#This Row],[eingebaute Menge]]>0,IF(ISBLANK(Tabelle2[[#This Row],[empfohlene Menge]]),$AA$5,\nIF(AND(ISBLANK(Tabelle2[[#This Row],[C\n]])),\nIF(AND(ISBLANK(Tabelle2[[#This Row],[W\n]])),\nIF(AND(ISBLANK(Tabelle2[[#This Row],[S\n]])),\nIF(AND(ISBLANK(Tabelle2[[#This Row],[T\n]])),$AB$5,))))))","v":false}]
[7,null,null,null,null,null,null,null,null,null,null,null,null,null,null,null,null,null,null,{"$f":"Tabelle2[[#This Row],[EK Preis brutto/Einheit\n(ohne MwSt)]]*(100%-Tabelle2[[#This Row],[Rabatt %]])","v":0},{"$f":"IF(Tabelle2[[#This Row],[eingebaute Menge]]>0,IF(ISBLANK(Tabelle2[[#This Row],[empfohlene Menge]]),$AA$5,\nIF(AND(ISBLANK(Tabelle2[[#This Row],[C\n]])),\nIF(AND(ISBLANK(Tabelle2[[#This Row],[W\n]])),\nIF(AND(ISBLANK(Tabelle2[[#This Row],[S\n]])),\nIF(AND(ISBLANK(Tabelle2[[#This Row],[T\n]])),$AB$5,))))))","v":false}]
[8,null,null,null,null,null,null,null,null,null,null,null,null,null,null,null,null,null,null,{"$f":"Tabelle2[[#This Row],[EK Preis brutto/Einheit\n(ohne MwSt)]]*(100%-Tabelle2[[#This Row],[Rabatt %]])","v":0},{"$f":"IF(Tabelle2[[#This Row],[eingebaute Menge]]>0,IF(ISBLANK(Tabelle2[[#This Row],[empfohlene Menge]]),$AA$5,\nIF(AND(ISBLANK(Tabelle2[[#This Row],[C\n]])),\nIF(AND(ISBLANK(Tabelle2[[#This Row],[W\n]])),\nIF(AND(ISBLANK(Tabelle2[[#This Row],[S\n]])),\nIF(AND(ISBLANK(Tabelle2[[#This Row],[T\n]])),$AB$5,))))))","v":false}]
[9,null,null,null,null,null,null,null,null,null,null,null,null,null,null,null,null,null,null,{"$f":"Tabelle2[[#This Row],[EK Preis brutto/Einheit\n(ohne MwSt)]]*(100%-Tabelle2[[#This Row],[Rabatt %]])","v":0},{"$f":"IF(Tabelle2[[#This Row],[eingebaute Menge]]>0,IF(ISBLANK(Tabelle2[[#This Row],[empfohlene Menge]]),$AA$5,\nIF(AND(ISBLANK(Tabelle2[[#This Row],[C\n]])),\nIF(AND(ISBLANK(Tabelle2[[#This Row],[W\n]])),\nIF(AND(ISBLANK(Tabelle2[[#This Row],[S\n]])),\nIF(AND(ISBLANK(Tabelle2[[#This Row],[T\n]])),$AB$5,))))))","v":false}]
[10,null,null,null,null,null,null,null,null,null,null,null,null,null,null,null,null,null,null,{"$f":"Tabelle2[[#This Row],[EK Preis brutto/Einheit\n(ohne MwSt)]]*(100%-Tabelle2[[#This Row],[Rabatt %]])","v":0},{"$f":"IF(Tabelle2[[#This Row],[eingebaute Menge]]>0,IF(ISBLANK(Tabelle2[[#This Row],[empfohlene Menge]]),$AA$5,\nIF(AND(ISBLANK(Tabelle2[[#This Row],[C\n]])),\nIF(AND(ISBLANK(Tabelle2[[#This Row],[W\n]])),\nIF(AND(ISBLANK(Tabelle2[[#This Row],[S\n]])),\nIF(AND(ISBLANK(Tabelle2[[#This Row],[T\n]])),$AB$5,))))))","v":false}]
[11,null,null,null,null,null,null,null,null,null,null,null,null,null,null,null,null,null,null,{"$f":"Tabelle2[[#This Row],[EK Preis brutto/Einheit\n(ohne MwSt)]]*(100%-Tabelle2[[#This Row],[Rabatt %]])","v":0},{"$f":"IF(Tabelle2[[#This Row],[eingebaute Menge]]>0,IF(ISBLANK(Tabelle2[[#This Row],[empfohlene Menge]]),$AA$5,\nIF(AND(ISBLANK(Tabelle2[[#This Row],[C\n]])),\nIF(AND(ISBLANK(Tabelle2[[#This Row],[W\n]])),\nIF(AND(ISBLANK(Tabelle2[[#This Row],[S\n]])),\nIF(AND(ISBLANK(Tabelle2[[#This Row],[T\n]])),$AB$5,))))))","v":false}]
[12,null,null,null,null,null,null,null,null,null,null,null,null,null,null,null,null,null,null,{"$f":"Tabelle2[[#This Row],[EK Preis brutto/Einheit\n(ohne MwSt)]]*(100%-Tabelle2[[#This Row],[Rabatt %]])","v":0},{"$f":"IF(Tabelle2[[#This Row],[eingebaute Menge]]>0,IF(ISBLANK(Tabelle2[[#This Row],[empfohlene Menge]]),$AA$5,\nIF(AND(ISBLANK(Tabelle2[[#This Row],[C\n]])),\nIF(AND(ISBLANK(Tabelle2[[#This Row],[W\n]])),\nIF(AND(ISBLANK(Tabelle2[[#This Row],[S\n]])),\nIF(AND(ISBLANK(Tabelle2[[#This Row],[T\n]])),$AB$5,))))))","v":false}]
[13,null,null,null,null,null,null,null,null,null,null,null,null,null,null,null,null,null,null,{"$f":"Tabelle2[[#This Row],[EK Preis brutto/Einheit\n(ohne MwSt)]]*(100%-Tabelle2[[#This Row],[Rabatt %]])","v":0},{"$f":"IF(Tabelle2[[#This Row],[eingebaute Menge]]>0,IF(ISBLANK(Tabelle2[[#This Row],[empfohlene Menge]]),$AA$5,\nIF(AND(ISBLANK(Tabelle2[[#This Row],[C\n]])),\nIF(AND(ISBLANK(Tabelle2[[#This Row],[W\n]])),\nIF(AND(ISBLANK(Tabelle2[[#This Row],[S\n]])),\nIF(AND(ISBLANK(Tabelle2[[#This Row],[T\n]])),$AB$5,))))))","v":false}]
[14,null,null,null,null,null,null,null,null,null,null,null,null,null,null,null,null,null,null,{"$f":"Tabelle2[[#This Row],[EK Preis brutto/Einheit\n(ohne MwSt)]]*(100%-Tabelle2[[#This Row],[Rabatt %]])","v":0},{"$f":"IF(Tabelle2[[#This Row],[eingebaute Menge]]>0,IF(ISBLANK(Tabelle2[[#This Row],[empfohlene Menge]]),$AA$5,\nIF(AND(ISBLANK(Tabelle2[[#This Row],[C\n]])),\nIF(AND(ISBLANK(Tabelle2[[#This Row],[W\n]])),\nIF(AND(ISBLANK(Tabelle2[[#This Row],[S\n]])),\nIF(AND(ISBLANK(Tabelle2[[#This Row],[T\n]])),$AB$5,))))))","v":false}]
[15,null,null,null,null,null,null,null,null,null,null,null,null,null,null,null,null,null,null,{"$f":"Tabelle2[[#This Row],[EK Preis brutto/Einheit\n(ohne MwSt)]]*(100%-Tabelle2[[#This Row],[Rabatt %]])","v":0},{"$f":"IF(Tabelle2[[#This Row],[eingebaute Menge]]>0,IF(ISBLANK(Tabelle2[[#This Row],[empfohlene Menge]]),$AA$5,\nIF(AND(ISBLANK(Tabelle2[[#This Row],[C\n]])),\nIF(AND(ISBLANK(Tabelle2[[#This Row],[W\n]])),\nIF(AND(ISBLANK(Tabelle2[[#This Row],[S\n]])),\nIF(AND(ISBLANK(Tabelle2[[#This Row],[T\n]])),$AB$5,))))))","v":false}]
[16,null,null,null,null,null,null,null,null,null,null,null,null,null,null,null,null,null,null,{"$f":"Tabelle2[[#This Row],[EK Preis brutto/Einheit\n(ohne MwSt)]]*(100%-Tabelle2[[#This Row],[Rabatt %]])","v":0},{"$f":"IF(Tabelle2[[#This Row],[eingebaute Menge]]>0,IF(ISBLANK(Tabelle2[[#This Row],[empfohlene Menge]]),$AA$5,\nIF(AND(ISBLANK(Tabelle2[[#This Row],[C\n]])),\nIF(AND(ISBLANK(Tabelle2[[#This Row],[W\n]])),\nIF(AND(ISBLANK(Tabelle2[[#This Row],[S\n]])),\nIF(AND(ISBLANK(Tabelle2[[#This Row],[T\n]])),$AB$5,))))))","v":false}]
[17,null,null,null,null,null,null,null,null,null,null,null,null,null,null,null,null,null,null,{"$f":"Tabelle2[[#This Row],[EK Preis brutto/Einheit\n(ohne MwSt)]]*(100%-Tabelle2[[#This Row],[Rabatt %]])","v":0},{"$f":"IF(Tabelle2[[#This Row],[eingebaute Menge]]>0,IF(ISBLANK(Tabelle2[[#This Row],[empfohlene Menge]]),$AA$5,\nIF(AND(ISBLANK(Tabelle2[[#This Row],[C\n]])),\nIF(AND(ISBLANK(Tabelle2[[#This Row],[W\n]])),\nIF(AND(ISBLANK(Tabelle2[[#This Row],[S\n]])),\nIF(AND(ISBLANK(Tabelle2[[#This Row],[T\n]])),$AB$5,))))))","v":false}]
[18,null,null,null,null,null,null,null,null,null,null,null,null,null,null,null,null,null,null,{"$f":"Tabelle2[[#This Row],[EK Preis brutto/Einheit\n(ohne MwSt)]]*(100%-Tabelle2[[#This Row],[Rabatt %]])","v":0},{"$f":"IF(Tabelle2[[#This Row],[eingebaute Menge]]>0,IF(ISBLANK(Tabelle2[[#This Row],[empfohlene Menge]]),$AA$5,\nIF(AND(ISBLANK(Tabelle2[[#This Row],[C\n]])),\nIF(AND(ISBLANK(Tabelle2[[#This Row],[W\n]])),\nIF(AND(ISBLANK(Tabelle2[[#This Row],[S\n]])),\nIF(AND(ISBLANK(Tabelle2[[#This Row],[T\n]])),$AB$5,))))))","v":false}]
[19,null,null,null,null,null,null,null,null,null,null,null,null,null,null,null,null,null,null,{"$f":"Tabelle2[[#This Row],[EK Preis brutto/Einheit\n(ohne MwSt)]]*(100%-Tabelle2[[#This Row],[Rabatt %]])","v":0},{"$f":"IF(Tabelle2[[#This Row],[eingebaute Menge]]>0,IF(ISBLANK(Tabelle2[[#This Row],[empfohlene Menge]]),$AA$5,\nIF(AND(ISBLANK(Tabelle2[[#This Row],[C\n]])),\nIF(AND(ISBLANK(Tabelle2[[#This Row],[W\n]])),\nIF(AND(ISBLANK(Tabelle2[[#This Row],[S\n]])),\nIF(AND(ISBLANK(Tabelle2[[#This Row],[T\n]])),$AB$5,))))))","v":false}]
[20,null,null,null,null,null,null,null,null,null,null,null,null,null,null,null,null,null,null,{"$f":"Tabelle2[[#This Row],[EK Preis brutto/Einheit\n(ohne MwSt)]]*(100%-Tabelle2[[#This Row],[Rabatt %]])","v":0},{"$f":"IF(Tabelle2[[#This Row],[eingebaute Menge]]>0,IF(ISBLANK(Tabelle2[[#This Row],[empfohlene Menge]]),$AA$5,\nIF(AND(ISBLANK(Tabelle2[[#This Row],[C\n]])),\nIF(AND(ISBLANK(Tabelle2[[#This Row],[W\n]])),\nIF(AND(ISBLANK(Tabelle2[[#This Row],[S\n]])),\nIF(AND(ISBLANK(Tabelle2[[#This Row],[T\n]])),$AB$5,))))))","v":false}]
[21,null,null,null,null,null,null,null,null,null,null,null,null,null,null,null,null,null,null,{"$f":"Tabelle2[[#This Row],[EK Preis brutto/Einheit\n(ohne MwSt)]]*(100%-Tabelle2[[#This Row],[Rabatt %]])","v":0},{"$f":"IF(Tabelle2[[#This Row],[eingebaute Menge]]>0,IF(ISBLANK(Tabelle2[[#This Row],[empfohlene Menge]]),$AA$5,\nIF(AND(ISBLANK(Tabelle2[[#This Row],[C\n]])),\nIF(AND(ISBLANK(Tabelle2[[#This Row],[W\n]])),\nIF(AND(ISBLANK(Tabelle2[[#This Row],[S\n]])),\nIF(AND(ISBLANK(Tabelle2[[#This Row],[T\n]])),$AB$5,))))))","v":false}]
[22,null,null,null,null,null,null,null,null,null,null,null,null,null,null,null,null,null,null,{"$f":"Tabelle2[[#This Row],[EK Preis brutto/Einheit\n(ohne MwSt)]]*(100%-Tabelle2[[#This Row],[Rabatt %]])","v":0},{"$f":"IF(Tabelle2[[#This Row],[eingebaute Menge]]>0,IF(ISBLANK(Tabelle2[[#This Row],[empfohlene Menge]]),$AA$5,\nIF(AND(ISBLANK(Tabelle2[[#This Row],[C\n]])),\nIF(AND(ISBLANK(Tabelle2[[#This Row],[W\n]])),\nIF(AND(ISBLANK(Tabelle2[[#This Row],[S\n]])),\nIF(AND(ISBLANK(Tabelle2[[#This Row],[T\n]])),$AB$5,))))))","v":false}]
[23,null,null,null,null,null,null,null,null,null,null,null,null,null,null,null,null,null,null,{"$f":"Tabelle2[[#This Row],[EK Preis brutto/Einheit\n(ohne MwSt)]]*(100%-Tabelle2[[#This Row],[Rabatt %]])","v":0},{"$f":"IF(Tabelle2[[#This Row],[eingebaute Menge]]>0,IF(ISBLANK(Tabelle2[[#This Row],[empfohlene Menge]]),$AA$5,\nIF(AND(ISBLANK(Tabelle2[[#This Row],[C\n]])),\nIF(AND(ISBLANK(Tabelle2[[#This Row],[W\n]])),\nIF(AND(ISBLANK(Tabelle2[[#This Row],[S\n]])),\nIF(AND(ISBLANK(Tabelle2[[#This Row],[T\n]])),$AB$5,))))))","v":false}]
[24,null,null,null,null,null,null,null,null,null,null,null,null,null,null,null,null,null,null,{"$f":"Tabelle2[[#This Row],[EK Preis brutto/Einheit\n(ohne MwSt)]]*(100%-Tabelle2[[#This Row],[Rabatt %]])","v":0},{"$f":"IF(Tabelle2[[#This Row],[eingebaute Menge]]>0,IF(ISBLANK(Tabelle2[[#This Row],[empfohlene Menge]]),$AA$5,\nIF(AND(ISBLANK(Tabelle2[[#This Row],[C\n]])),\nIF(AND(ISBLANK(Tabelle2[[#This Row],[W\n]])),\nIF(AND(ISBLANK(Tabelle2[[#This Row],[S\n]])),\nIF(AND(ISBLANK(Tabelle2[[#This Row],[T\n]])),$AB$5,))))))","v":false}]
[25,null,null,null,null,null,null,null,null,null,null,null,null,null,null,null,null,null,null,{"$f":"Tabelle2[[#This Row],[EK Preis brutto/Einheit\n(ohne MwSt)]]*(100%-Tabelle2[[#This Row],[Rabatt %]])","v":0},{"$f":"IF(Tabelle2[[#This Row],[eingebaute Menge]]>0,IF(ISBLANK(Tabelle2[[#This Row],[empfohlene Menge]]),$AA$5,\nIF(AND(ISBLANK(Tabelle2[[#This Row],[C\n]])),\nIF(AND(ISBLANK(Tabelle2[[#This Row],[W\n]])),\nIF(AND(ISBLANK(Tabelle2[[#This Row],[S\n]])),\nIF(AND(ISBLANK(Tabelle2[[#This Row],[T\n]])),$AB$5,))))))","v":false}]
[26,null,null,null,null,null,null,null,null,null,null,null,null,null,null,null,null,null,null,{"$f":"Tabelle2[[#This Row],[EK Preis brutto/Einheit\n(ohne MwSt)]]*(100%-Tabelle2[[#This Row],[Rabatt %]])","v":0},{"$f":"IF(Tabelle2[[#This Row],[eingebaute Menge]]>0,IF(ISBLANK(Tabelle2[[#This Row],[empfohlene Menge]]),$AA$5,\nIF(AND(ISBLANK(Tabelle2[[#This Row],[C\n]])),\nIF(AND(ISBLANK(Tabelle2[[#This Row],[W\n]])),\nIF(AND(ISBLANK(Tabelle2[[#This Row],[S\n]])),\nIF(AND(ISBLANK(Tabelle2[[#This Row],[T\n]])),$AB$5,))))))","v":false}]
[27,null,null,null,null,null,null,null,null,null,null,null,null,null,null,null,null,null,null,{"$f":"Tabelle2[[#This Row],[EK Preis brutto/Einheit\n(ohne MwSt)]]*(100%-Tabelle2[[#This Row],[Rabatt %]])","v":0},{"$f":"IF(Tabelle2[[#This Row],[eingebaute Menge]]>0,IF(ISBLANK(Tabelle2[[#This Row],[empfohlene Menge]]),$AA$5,\nIF(AND(ISBLANK(Tabelle2[[#This Row],[C\n]])),\nIF(AND(ISBLANK(Tabelle2[[#This Row],[W\n]])),\nIF(AND(ISBLANK(Tabelle2[[#This Row],[S\n]])),\nIF(AND(ISBLANK(Tabelle2[[#This Row],[T\n]])),$AB$5,))))))","v":false}]
[28,null,null,null,null,null,null,null,null,null,null,null,null,null,null,null,null,null,null,{"$f":"Tabelle2[[#This Row],[EK Preis brutto/Einheit\n(ohne MwSt)]]*(100%-Tabelle2[[#This Row],[Rabatt %]])","v":0},{"$f":"IF(Tabelle2[[#This Row],[eingebaute Menge]]>0,IF(ISBLANK(Tabelle2[[#This Row],[empfohlene Menge]]),$AA$5,\nIF(AND(ISBLANK(Tabelle2[[#This Row],[C\n]])),\nIF(AND(ISBLANK(Tabelle2[[#This Row],[W\n]])),\nIF(AND(ISBLANK(Tabelle2[[#This Row],[S\n]])),\nIF(AND(ISBLANK(Tabelle2[[#This Row],[T\n]])),$AB$5,))))))","v":false}]
[29,null,null,null,null,null,null,null,null,null,null,null,null,null,null,null,null,null,null,{"$f":"Tabelle2[[#This Row],[EK Preis brutto/Einheit\n(ohne MwSt)]]*(100%-Tabelle2[[#This Row],[Rabatt %]])","v":0},{"$f":"IF(Tabelle2[[#This Row],[eingebaute Menge]]>0,IF(ISBLANK(Tabelle2[[#This Row],[empfohlene Menge]]),$AA$5,\nIF(AND(ISBLANK(Tabelle2[[#This Row],[C\n]])),\nIF(AND(ISBLANK(Tabelle2[[#This Row],[W\n]])),\nIF(AND(ISBLANK(Tabelle2[[#This Row],[S\n]])),\nIF(AND(ISBLANK(Tabelle2[[#This Row],[T\n]])),$AB$5,))))))","v":false}]
[30,null,null,null,null,null,null,null,null,null,null,null,null,null,null,null,null,null,null,{"$f":"Tabelle2[[#This Row],[EK Preis brutto/Einheit\n(ohne MwSt)]]*(100%-Tabelle2[[#This Row],[Rabatt %]])","v":0},{"$f":"IF(Tabelle2[[#This Row],[eingebaute Menge]]>0,IF(ISBLANK(Tabelle2[[#This Row],[empfohlene Menge]]),$AA$5,\nIF(AND(ISBLANK(Tabelle2[[#This Row],[C\n]])),\nIF(AND(ISBLANK(Tabelle2[[#This Row],[W\n]])),\nIF(AND(ISBLANK(Tabelle2[[#This Row],[S\n]])),\nIF(AND(ISBLANK(Tabelle2[[#This Row],[T\n]])),$AB$5,))))))","v":false}]
[31,null,null,null,null,null,null,null,null,null,null,null,null,null,null,null,null,null,null,{"$f":"Tabelle2[[#This Row],[EK Preis brutto/Einheit\n(ohne MwSt)]]*(100%-Tabelle2[[#This Row],[Rabatt %]])","v":0},{"$f":"IF(Tabelle2[[#This Row],[eingebaute Menge]]>0,IF(ISBLANK(Tabelle2[[#This Row],[empfohlene Menge]]),$AA$5,\nIF(AND(ISBLANK(Tabelle2[[#This Row],[C\n]])),\nIF(AND(ISBLANK(Tabelle2[[#This Row],[W\n]])),\nIF(AND(ISBLANK(Tabelle2[[#This Row],[S\n]])),\nIF(AND(ISBLANK(Tabelle2[[#This Row],[T\n]])),$AB$5,))))))","v":false}]
[32,null,null,null,null,null,null,null,null,null,null,null,null,null,null,null,null,null,null,{"$f":"Tabelle2[[#This Row],[EK Preis brutto/Einheit\n(ohne MwSt)]]*(100%-Tabelle2[[#This Row],[Rabatt %]])","v":0},{"$f":"IF(Tabelle2[[#This Row],[eingebaute Menge]]>0,IF(ISBLANK(Tabelle2[[#This Row],[empfohlene Menge]]),$AA$5,\nIF(AND(ISBLANK(Tabelle2[[#This Row],[C\n]])),\nIF(AND(ISBLANK(Tabelle2[[#This Row],[W\n]])),\nIF(AND(ISBLANK(Tabelle2[[#This Row],[S\n]])),\nIF(AND(ISBLANK(Tabelle2[[#This Row],[T\n]])),$AB$5,))))))","v":false}]
[33,null,null,null,null,null,null,null,null,null,null,null,null,null,null,null,null,null,null,{"$f":"Tabelle2[[#This Row],[EK Preis brutto/Einheit\n(ohne MwSt)]]*(100%-Tabelle2[[#This Row],[Rabatt %]])","v":0},{"$f":"IF(Tabelle2[[#This Row],[eingebaute Menge]]>0,IF(ISBLANK(Tabelle2[[#This Row],[empfohlene Menge]]),$AA$5,\nIF(AND(ISBLANK(Tabelle2[[#This Row],[C\n]])),\nIF(AND(ISBLANK(Tabelle2[[#This Row],[W\n]])),\nIF(AND(ISBLANK(Tabelle2[[#This Row],[S\n]])),\nIF(AND(ISBLANK(Tabelle2[[#This Row],[T\n]])),$AB$5,))))))","v":false}]
[34,null,null,null,null,null,null,null,null,null,null,null,null,null,null,null,null,null,null,{"$f":"Tabelle2[[#This Row],[EK Preis brutto/Einheit\n(ohne MwSt)]]*(100%-Tabelle2[[#This Row],[Rabatt %]])","v":0},{"$f":"IF(Tabelle2[[#This Row],[eingebaute Menge]]>0,IF(ISBLANK(Tabelle2[[#This Row],[empfohlene Menge]]),$AA$5,\nIF(AND(ISBLANK(Tabelle2[[#This Row],[C\n]])),\nIF(AND(ISBLANK(Tabelle2[[#This Row],[W\n]])),\nIF(AND(ISBLANK(Tabelle2[[#This Row],[S\n]])),\nIF(AND(ISBLANK(Tabelle2[[#This Row],[T\n]])),$AB$5,))))))","v":false}]
[35,null,null,null,null,null,null,null,null,null,null,null,null,null,null,null,null,null,null,{"$f":"Tabelle2[[#This Row],[EK Preis brutto/Einheit\n(ohne MwSt)]]*(100%-Tabelle2[[#This Row],[Rabatt %]])","v":0},{"$f":"IF(Tabelle2[[#This Row],[eingebaute Menge]]>0,IF(ISBLANK(Tabelle2[[#This Row],[empfohlene Menge]]),$AA$5,\nIF(AND(ISBLANK(Tabelle2[[#This Row],[C\n]])),\nIF(AND(ISBLANK(Tabelle2[[#This Row],[W\n]])),\nIF(AND(ISBLANK(Tabelle2[[#This Row],[S\n]])),\nIF(AND(ISBLANK(Tabelle2[[#This Row],[T\n]])),$AB$5,))))))","v":false}]
[36,null,null,null,null,null,null,null,null,null,null,null,null,null,null,null,null,null,null,{"$f":"Tabelle2[[#This Row],[EK Preis brutto/Einheit\n(ohne MwSt)]]*(100%-Tabelle2[[#This Row],[Rabatt %]])","v":0},{"$f":"IF(Tabelle2[[#This Row],[eingebaute Menge]]>0,IF(ISBLANK(Tabelle2[[#This Row],[empfohlene Menge]]),$AA$5,\nIF(AND(ISBLANK(Tabelle2[[#This Row],[C\n]])),\nIF(AND(ISBLANK(Tabelle2[[#This Row],[W\n]])),\nIF(AND(ISBLANK(Tabelle2[[#This Row],[S\n]])),\nIF(AND(ISBLANK(Tabelle2[[#This Row],[T\n]])),$AB$5,))))))","v":false}]
[37,null,null,null,null,null,null,null,null,null,null,null,null,null,null,null,null,null,null,{"$f":"Tabelle2[[#This Row],[EK Preis brutto/Einheit\n(ohne MwSt)]]*(100%-Tabelle2[[#This Row],[Rabatt %]])","v":0},{"$f":"IF(Tabelle2[[#This Row],[eingebaute Menge]]>0,IF(ISBLANK(Tabelle2[[#This Row],[empfohlene Menge]]),$AA$5,\nIF(AND(ISBLANK(Tabelle2[[#This Row],[C\n]])),\nIF(AND(ISBLANK(Tabelle2[[#This Row],[W\n]])),\nIF(AND(ISBLANK(Tabelle2[[#This Row],[S\n]])),\nIF(AND(ISBLANK(Tabelle2[[#This Row],[T\n]])),$AB$5,))))))","v":false}]
[38,null,null,null,null,null,null,null,null,null,null,null,null,null,null,null,null,null,null,{"$f":"Tabelle2[[#This Row],[EK Preis brutto/Einheit\n(ohne MwSt)]]*(100%-Tabelle2[[#This Row],[Rabatt %]])","v":0},{"$f":"IF(Tabelle2[[#This Row],[eingebaute Menge]]>0,IF(ISBLANK(Tabelle2[[#This Row],[empfohlene Menge]]),$AA$5,\nIF(AND(ISBLANK(Tabelle2[[#This Row],[C\n]])),\nIF(AND(ISBLANK(Tabelle2[[#This Row],[W\n]])),\nIF(AND(ISBLANK(Tabelle2[[#This Row],[S\n]])),\nIF(AND(ISBLANK(Tabelle2[[#This Row],[T\n]])),$AB$5,))))))","v":false}]
[39,null,null,null,null,null,null,null,null,null,null,null,null,null,null,null,null,null,null,{"$f":"Tabelle2[[#This Row],[EK Preis brutto/Einheit\n(ohne MwSt)]]*(100%-Tabelle2[[#This Row],[Rabatt %]])","v":0},{"$f":"IF(Tabelle2[[#This Row],[eingebaute Menge]]>0,IF(ISBLANK(Tabelle2[[#This Row],[empfohlene Menge]]),$AA$5,\nIF(AND(ISBLANK(Tabelle2[[#This Row],[C\n]])),\nIF(AND(ISBLANK(Tabelle2[[#This Row],[W\n]])),\nIF(AND(ISBLANK(Tabelle2[[#This Row],[S\n]])),\nIF(AND(ISBLANK(Tabelle2[[#This Row],[T\n]])),$AB$5,))))))","v":false}]
[40,null,null,null,null,null,null,null,null,null,null,null,null,null,null,null,null,null,null,{"$f":"Tabelle2[[#This Row],[EK Preis brutto/Einheit\n(ohne MwSt)]]*(100%-Tabelle2[[#This Row],[Rabatt %]])","v":0},{"$f":"IF(Tabelle2[[#This Row],[eingebaute Menge]]>0,IF(ISBLANK(Tabelle2[[#This Row],[empfohlene Menge]]),$AA$5,\nIF(AND(ISBLANK(Tabelle2[[#This Row],[C\n]])),\nIF(AND(ISBLANK(Tabelle2[[#This Row],[W\n]])),\nIF(AND(ISBLANK(Tabelle2[[#This Row],[S\n]])),\nIF(AND(ISBLANK(Tabelle2[[#This Row],[T\n]])),$AB$5,))))))","v":false}]
[41,null,null,null,null,null,null,null,null,null,null,null,null,null,null,null,null,null,null,{"$f":"Tabelle2[[#This Row],[EK Preis brutto/Einheit\n(ohne MwSt)]]*(100%-Tabelle2[[#This Row],[Rabatt %]])","v":0},{"$f":"IF(Tabelle2[[#This Row],[eingebaute Menge]]>0,IF(ISBLANK(Tabelle2[[#This Row],[empfohlene Menge]]),$AA$5,\nIF(AND(ISBLANK(Tabelle2[[#This Row],[C\n]])),\nIF(AND(ISBLANK(Tabelle2[[#This Row],[W\n]])),\nIF(AND(ISBLANK(Tabelle2[[#This Row],[S\n]])),\nIF(AND(ISBLANK(Tabelle2[[#This Row],[T\n]])),$AB$5,))))))","v":false}]
[42,null,null,null,null,null,null,null,null,null,null,null,null,null,null,null,null,null,null,{"$f":"Tabelle2[[#This Row],[EK Preis brutto/Einheit\n(ohne MwSt)]]*(100%-Tabelle2[[#This Row],[Rabatt %]])","v":0},{"$f":"IF(Tabelle2[[#This Row],[eingebaute Menge]]>0,IF(ISBLANK(Tabelle2[[#This Row],[empfohlene Menge]]),$AA$5,\nIF(AND(ISBLANK(Tabelle2[[#This Row],[C\n]])),\nIF(AND(ISBLANK(Tabelle2[[#This Row],[W\n]])),\nIF(AND(ISBLANK(Tabelle2[[#This Row],[S\n]])),\nIF(AND(ISBLANK(Tabelle2[[#This Row],[T\n]])),$AB$5,))))))","v":false}]
[43,null,null,null,null,null,null,null,null,null,null,null,null,null,null,null,null,null,null,{"$f":"Tabelle2[[#This Row],[EK Preis brutto/Einheit\n(ohne MwSt)]]*(100%-Tabelle2[[#This Row],[Rabatt %]])","v":0},{"$f":"IF(Tabelle2[[#This Row],[eingebaute Menge]]>0,IF(ISBLANK(Tabelle2[[#This Row],[empfohlene Menge]]),$AA$5,\nIF(AND(ISBLANK(Tabelle2[[#This Row],[C\n]])),\nIF(AND(ISBLANK(Tabelle2[[#This Row],[W\n]])),\nIF(AND(ISBLANK(Tabelle2[[#This Row],[S\n]])),\nIF(AND(ISBLANK(Tabelle2[[#This Row],[T\n]])),$AB$5,))))))","v":false}]
[44,null,null,null,null,null,null,null,null,null,null,null,null,null,null,null,null,null,null,{"$f":"Tabelle2[[#This Row],[EK Preis brutto/Einheit\n(ohne MwSt)]]*(100%-Tabelle2[[#This Row],[Rabatt %]])","v":0},{"$f":"IF(Tabelle2[[#This Row],[eingebaute Menge]]>0,IF(ISBLANK(Tabelle2[[#This Row],[empfohlene Menge]]),$AA$5,\nIF(AND(ISBLANK(Tabelle2[[#This Row],[C\n]])),\nIF(AND(ISBLANK(Tabelle2[[#This Row],[W\n]])),\nIF(AND(ISBLANK(Tabelle2[[#This Row],[S\n]])),\nIF(AND(ISBLANK(Tabelle2[[#This Row],[T\n]])),$AB$5,))))))","v":false}]
[45,null,null,null,null,null,null,null,null,null,null,null,null,null,null,null,null,null,null,{"$f":"Tabelle2[[#This Row],[EK Preis brutto/Einheit\n(ohne MwSt)]]*(100%-Tabelle2[[#This Row],[Rabatt %]])","v":0},{"$f":"IF(Tabelle2[[#This Row],[eingebaute Menge]]>0,IF(ISBLANK(Tabelle2[[#This Row],[empfohlene Menge]]),$AA$5,\nIF(AND(ISBLANK(Tabelle2[[#This Row],[C\n]])),\nIF(AND(ISBLANK(Tabelle2[[#This Row],[W\n]])),\nIF(AND(ISBLANK(Tabelle2[[#This Row],[S\n]])),\nIF(AND(ISBLANK(Tabelle2[[#This Row],[T\n]])),$AB$5,))))))","v":false}]
[46,null,null,null,null,null,null,null,null,null,null,null,null,null,null,null,null,null,null,{"$f":"Tabelle2[[#This Row],[EK Preis brutto/Einheit\n(ohne MwSt)]]*(100%-Tabelle2[[#This Row],[Rabatt %]])","v":0},{"$f":"IF(Tabelle2[[#This Row],[eingebaute Menge]]>0,IF(ISBLANK(Tabelle2[[#This Row],[empfohlene Menge]]),$AA$5,\nIF(AND(ISBLANK(Tabelle2[[#This Row],[C\n]])),\nIF(AND(ISBLANK(Tabelle2[[#This Row],[W\n]])),\nIF(AND(ISBLANK(Tabelle2[[#This Row],[S\n]])),\nIF(AND(ISBLANK(Tabelle2[[#This Row],[T\n]])),$AB$5,))))))","v":false}]
[47,null,null,null,null,null,null,null,null,null,null,null,null,null,null,null,null,null,null,{"$f":"Tabelle2[[#This Row],[EK Preis brutto/Einheit\n(ohne MwSt)]]*(100%-Tabelle2[[#This Row],[Rabatt %]])","v":0},{"$f":"IF(Tabelle2[[#This Row],[eingebaute Menge]]>0,IF(ISBLANK(Tabelle2[[#This Row],[empfohlene Menge]]),$AA$5,\nIF(AND(ISBLANK(Tabelle2[[#This Row],[C\n]])),\nIF(AND(ISBLANK(Tabelle2[[#This Row],[W\n]])),\nIF(AND(ISBLANK(Tabelle2[[#This Row],[S\n]])),\nIF(AND(ISBLANK(Tabelle2[[#This Row],[T\n]])),$AB$5,))))))","v":false}]
[48,null,null,null,null,null,null,null,null,null,null,null,null,null,null,null,null,null,null,{"$f":"Tabelle2[[#This Row],[EK Preis brutto/Einheit\n(ohne MwSt)]]*(100%-Tabelle2[[#This Row],[Rabatt %]])","v":0},{"$f":"IF(Tabelle2[[#This Row],[eingebaute Menge]]>0,IF(ISBLANK(Tabelle2[[#This Row],[empfohlene Menge]]),$AA$5,\nIF(AND(ISBLANK(Tabelle2[[#This Row],[C\n]])),\nIF(AND(ISBLANK(Tabelle2[[#This Row],[W\n]])),\nIF(AND(ISBLANK(Tabelle2[[#This Row],[S\n]])),\nIF(AND(ISBLANK(Tabelle2[[#This Row],[T\n]])),$AB$5,))))))","v":false}]
[49,null,null,null,null,null,null,null,null,null,null,null,null,null,null,null,null,null,null,{"$f":"Tabelle2[[#This Row],[EK Preis brutto/Einheit\n(ohne MwSt)]]*(100%-Tabelle2[[#This Row],[Rabatt %]])","v":0},{"$f":"IF(Tabelle2[[#This Row],[eingebaute Menge]]>0,IF(ISBLANK(Tabelle2[[#This Row],[empfohlene Menge]]),$AA$5,\nIF(AND(ISBLANK(Tabelle2[[#This Row],[C\n]])),\nIF(AND(ISBLANK(Tabelle2[[#This Row],[W\n]])),\nIF(AND(ISBLANK(Tabelle2[[#This Row],[S\n]])),\nIF(AND(ISBLANK(Tabelle2[[#This Row],[T\n]])),$AB$5,))))))","v":false}]
[50,null,null,null,null,null,null,null,null,null,null,null,null,null,null,null,null,null,null,{"$f":"Tabelle2[[#This Row],[EK Preis brutto/Einheit\n(ohne MwSt)]]*(100%-Tabelle2[[#This Row],[Rabatt %]])","v":0},{"$f":"IF(Tabelle2[[#This Row],[eingebaute Menge]]>0,IF(ISBLANK(Tabelle2[[#This Row],[empfohlene Menge]]),$AA$5,\nIF(AND(ISBLANK(Tabelle2[[#This Row],[C\n]])),\nIF(AND(ISBLANK(Tabelle2[[#This Row],[W\n]])),\nIF(AND(ISBLANK(Tabelle2[[#This Row],[S\n]])),\nIF(AND(ISBLANK(Tabelle2[[#This Row],[T\n]])),$AB$5,))))))","v":false}]
[51,null,null,null,null,null,null,null,null,null,null,null,null,null,null,null,null,null,null,{"$f":"Tabelle2[[#This Row],[EK Preis brutto/Einheit\n(ohne MwSt)]]*(100%-Tabelle2[[#This Row],[Rabatt %]])","v":0},{"$f":"IF(Tabelle2[[#This Row],[eingebaute Menge]]>0,IF(ISBLANK(Tabelle2[[#This Row],[empfohlene Menge]]),$AA$5,\nIF(AND(ISBLANK(Tabelle2[[#This Row],[C\n]])),\nIF(AND(ISBLANK(Tabelle2[[#This Row],[W\n]])),\nIF(AND(ISBLANK(Tabelle2[[#This Row],[S\n]])),\nIF(AND(ISBLANK(Tabelle2[[#This Row],[T\n]])),$AB$5,))))))","v":false}]
[52,null,null,null,null,null,null,null,null,null,null,null,null,null,null,null,null,null,null,{"$f":"Tabelle2[[#This Row],[EK Preis brutto/Einheit\n(ohne MwSt)]]*(100%-Tabelle2[[#This Row],[Rabatt %]])","v":0},{"$f":"IF(Tabelle2[[#This Row],[eingebaute Menge]]>0,IF(ISBLANK(Tabelle2[[#This Row],[empfohlene Menge]]),$AA$5,\nIF(AND(ISBLANK(Tabelle2[[#This Row],[C\n]])),\nIF(AND(ISBLANK(Tabelle2[[#This Row],[W\n]])),\nIF(AND(ISBLANK(Tabelle2[[#This Row],[S\n]])),\nIF(AND(ISBLANK(Tabelle2[[#This Row],[T\n]])),$AB$5,))))))","v":false}]
[53,null,null,null,null,null,null,null,null,null,null,null,null,null,null,null,null,null,null,{"$f":"Tabelle2[[#This Row],[EK Preis brutto/Einheit\n(ohne MwSt)]]*(100%-Tabelle2[[#This Row],[Rabatt %]])","v":0},{"$f":"IF(Tabelle2[[#This Row],[eingebaute Menge]]>0,IF(ISBLANK(Tabelle2[[#This Row],[empfohlene Menge]]),$AA$5,\nIF(AND(ISBLANK(Tabelle2[[#This Row],[C\n]])),\nIF(AND(ISBLANK(Tabelle2[[#This Row],[W\n]])),\nIF(AND(ISBLANK(Tabelle2[[#This Row],[S\n]])),\nIF(AND(ISBLANK(Tabelle2[[#This Row],[T\n]])),$AB$5,))))))","v":false}]
[54,null,null,null,null,null,null,null,null,null,null,null,null,null,null,null,null,null,null,{"$f":"Tabelle2[[#This Row],[EK Preis brutto/Einheit\n(ohne MwSt)]]*(100%-Tabelle2[[#This Row],[Rabatt %]])","v":0},{"$f":"IF(Tabelle2[[#This Row],[eingebaute Menge]]>0,IF(ISBLANK(Tabelle2[[#This Row],[empfohlene Menge]]),$AA$5,\nIF(AND(ISBLANK(Tabelle2[[#This Row],[C\n]])),\nIF(AND(ISBLANK(Tabelle2[[#This Row],[W\n]])),\nIF(AND(ISBLANK(Tabelle2[[#This Row],[S\n]])),\nIF(AND(ISBLANK(Tabelle2[[#This Row],[T\n]])),$AB$5,))))))","v":false}]
[55,null,null,null,null,null,null,null,null,null,null,null,null,null,null,null,null,null,null,{"$f":"Tabelle2[[#This Row],[EK Preis brutto/Einheit\n(ohne MwSt)]]*(100%-Tabelle2[[#This Row],[Rabatt %]])","v":0},{"$f":"IF(Tabelle2[[#This Row],[eingebaute Menge]]>0,IF(ISBLANK(Tabelle2[[#This Row],[empfohlene Menge]]),$AA$5,\nIF(AND(ISBLANK(Tabelle2[[#This Row],[C\n]])),\nIF(AND(ISBLANK(Tabelle2[[#This Row],[W\n]])),\nIF(AND(ISBLANK(Tabelle2[[#This Row],[S\n]])),\nIF(AND(ISBLANK(Tabelle2[[#This Row],[T\n]])),$AB$5,))))))","v":false}]
[56,null,null,null,null,null,null,null,null,null,null,null,null,null,null,null,null,null,null,{"$f":"Tabelle2[[#This Row],[EK Preis brutto/Einheit\n(ohne MwSt)]]*(100%-Tabelle2[[#This Row],[Rabatt %]])","v":0},{"$f":"IF(Tabelle2[[#This Row],[eingebaute Menge]]>0,IF(ISBLANK(Tabelle2[[#This Row],[empfohlene Menge]]),$AA$5,\nIF(AND(ISBLANK(Tabelle2[[#This Row],[C\n]])),\nIF(AND(ISBLANK(Tabelle2[[#This Row],[W\n]])),\nIF(AND(ISBLANK(Tabelle2[[#This Row],[S\n]])),\nIF(AND(ISBLANK(Tabelle2[[#This Row],[T\n]])),$AB$5,))))))","v":false}]
[57,null,null,null,null,null,null,null,null,null,null,null,null,null,null,null,null,null,null,{"$f":"Tabelle2[[#This Row],[EK Preis brutto/Einheit\n(ohne MwSt)]]*(100%-Tabelle2[[#This Row],[Rabatt %]])","v":0},{"$f":"IF(Tabelle2[[#This Row],[eingebaute Menge]]>0,IF(ISBLANK(Tabelle2[[#This Row],[empfohlene Menge]]),$AA$5,\nIF(AND(ISBLANK(Tabelle2[[#This Row],[C\n]])),\nIF(AND(ISBLANK(Tabelle2[[#This Row],[W\n]])),\nIF(AND(ISBLANK(Tabelle2[[#This Row],[S\n]])),\nIF(AND(ISBLANK(Tabelle2[[#This Row],[T\n]])),$AB$5,))))))","v":false}]
[58,null,null,null,null,null,null,null,null,null,null,null,null,null,null,null,null,null,null,{"$f":"Tabelle2[[#This Row],[EK Preis brutto/Einheit\n(ohne MwSt)]]*(100%-Tabelle2[[#This Row],[Rabatt %]])","v":0},{"$f":"IF(Tabelle2[[#This Row],[eingebaute Menge]]>0,IF(ISBLANK(Tabelle2[[#This Row],[empfohlene Menge]]),$AA$5,\nIF(AND(ISBLANK(Tabelle2[[#This Row],[C\n]])),\nIF(AND(ISBLANK(Tabelle2[[#This Row],[W\n]])),\nIF(AND(ISBLANK(Tabelle2[[#This Row],[S\n]])),\nIF(AND(ISBLANK(Tabelle2[[#This Row],[T\n]])),$AB$5,))))))","v":false}]
[59,null,null,null,null,null,null,null,null,null,null,null,null,null,null,null,null,null,null,{"$f":"Tabelle2[[#This Row],[EK Preis brutto/Einheit\n(ohne MwSt)]]*(100%-Tabelle2[[#This Row],[Rabatt %]])","v":0},{"$f":"IF(Tabelle2[[#This Row],[eingebaute Menge]]>0,IF(ISBLANK(Tabelle2[[#This Row],[empfohlene Menge]]),$AA$5,\nIF(AND(ISBLANK(Tabelle2[[#This Row],[C\n]])),\nIF(AND(ISBLANK(Tabelle2[[#This Row],[W\n]])),\nIF(AND(ISBLANK(Tabelle2[[#This Row],[S\n]])),\nIF(AND(ISBLANK(Tabelle2[[#This Row],[T\n]])),$AB$5,))))))","v":false}]
[60,null,null,null,null,null,null,null,null,null,null,null,null,null,null,null,null,null,null,{"$f":"Tabelle2[[#This Row],[EK Preis brutto/Einheit\n(ohne MwSt)]]*(100%-Tabelle2[[#This Row],[Rabatt %]])","v":0},{"$f":"IF(Tabelle2[[#This Row],[eingebaute Menge]]>0,IF(ISBLANK(Tabelle2[[#This Row],[empfohlene Menge]]),$AA$5,\nIF(AND(ISBLANK(Tabelle2[[#This Row],[C\n]])),\nIF(AND(ISBLANK(Tabelle2[[#This Row],[W\n]])),\nIF(AND(ISBLANK(Tabelle2[[#This Row],[S\n]])),\nIF(AND(ISBLANK(Tabelle2[[#This Row],[T\n]])),$AB$5,))))))","v":false}]
[61,null,null,null,null,null,null,null,null,null,null,null,null,null,null,null,null,null,null,{"$f":"Tabelle2[[#This Row],[EK Preis brutto/Einheit\n(ohne MwSt)]]*(100%-Tabelle2[[#This Row],[Rabatt %]])","v":0},{"$f":"IF(Tabelle2[[#This Row],[eingebaute Menge]]>0,IF(ISBLANK(Tabelle2[[#This Row],[empfohlene Menge]]),$AA$5,\nIF(AND(ISBLANK(Tabelle2[[#This Row],[C\n]])),\nIF(AND(ISBLANK(Tabelle2[[#This Row],[W\n]])),\nIF(AND(ISBLANK(Tabelle2[[#This Row],[S\n]])),\nIF(AND(ISBLANK(Tabelle2[[#This Row],[T\n]])),$AB$5,))))))","v":false}]
[62,null,null,null,null,null,null,null,null,null,null,null,null,null,null,null,null,null,null,{"$f":"Tabelle2[[#This Row],[EK Preis brutto/Einheit\n(ohne MwSt)]]*(100%-Tabelle2[[#This Row],[Rabatt %]])","v":0},{"$f":"IF(Tabelle2[[#This Row],[eingebaute Menge]]>0,IF(ISBLANK(Tabelle2[[#This Row],[empfohlene Menge]]),$AA$5,\nIF(AND(ISBLANK(Tabelle2[[#This Row],[C\n]])),\nIF(AND(ISBLANK(Tabelle2[[#This Row],[W\n]])),\nIF(AND(ISBLANK(Tabelle2[[#This Row],[S\n]])),\nIF(AND(ISBLANK(Tabelle2[[#This Row],[T\n]])),$AB$5,))))))","v":false}]
[63,null,null,null,null,null,null,null,null,null,null,null,null,null,null,null,null,null,null,{"$f":"Tabelle2[[#This Row],[EK Preis brutto/Einheit\n(ohne MwSt)]]*(100%-Tabelle2[[#This Row],[Rabatt %]])","v":0},{"$f":"IF(Tabelle2[[#This Row],[eingebaute Menge]]>0,IF(ISBLANK(Tabelle2[[#This Row],[empfohlene Menge]]),$AA$5,\nIF(AND(ISBLANK(Tabelle2[[#This Row],[C\n]])),\nIF(AND(ISBLANK(Tabelle2[[#This Row],[W\n]])),\nIF(AND(ISBLANK(Tabelle2[[#This Row],[S\n]])),\nIF(AND(ISBLANK(Tabelle2[[#This Row],[T\n]])),$AB$5,))))))","v":false}]
[64,null,null,null,null,null,null,null,null,null,null,null,null,null,null,null,null,null,null,{"$f":"Tabelle2[[#This Row],[EK Preis brutto/Einheit\n(ohne MwSt)]]*(100%-Tabelle2[[#This Row],[Rabatt %]])","v":0},{"$f":"IF(Tabelle2[[#This Row],[eingebaute Menge]]>0,IF(ISBLANK(Tabelle2[[#This Row],[empfohlene Menge]]),$AA$5,\nIF(AND(ISBLANK(Tabelle2[[#This Row],[C\n]])),\nIF(AND(ISBLANK(Tabelle2[[#This Row],[W\n]])),\nIF(AND(ISBLANK(Tabelle2[[#This Row],[S\n]])),\nIF(AND(ISBLANK(Tabelle2[[#This Row],[T\n]])),$AB$5,))))))","v":false}]
[65,null,null,null,null,null,null,null,null,null,null,null,null,null,null,null,null,null,null,{"$f":"Tabelle2[[#This Row],[EK Preis brutto/Einheit\n(ohne MwSt)]]*(100%-Tabelle2[[#This Row],[Rabatt %]])","v":0},{"$f":"IF(Tabelle2[[#This Row],[eingebaute Menge]]>0,IF(ISBLANK(Tabelle2[[#This Row],[empfohlene Menge]]),$AA$5,\nIF(AND(ISBLANK(Tabelle2[[#This Row],[C\n]])),\nIF(AND(ISBLANK(Tabelle2[[#This Row],[W\n]])),\nIF(AND(ISBLANK(Tabelle2[[#This Row],[S\n]])),\nIF(AND(ISBLANK(Tabelle2[[#This Row],[T\n]])),$AB$5,))))))","v":false}]
[{"$f":"A70+1","v":66},null,null,null,null,null,null,null,null,null,null,null,null,null,null,null,null,null,null,{"$f":"Tabelle2[[#This Row],[EK Preis brutto/Einheit\n(ohne MwSt)]]*(100%-Tabelle2[[#This Row],[Rabatt %]])","v":0},{"$f":"IF(Tabelle2[[#This Row],[eingebaute Menge]]>0,IF(ISBLANK(Tabelle2[[#This Row],[empfohlene Menge]]),$AA$5,\nIF(AND(ISBLANK(Tabelle2[[#This Row],[C\n]])),\nIF(AND(ISBLANK(Tabelle2[[#This Row],[W\n]])),\nIF(AND(ISBLANK(Tabelle2[[#This Row],[S\n]])),\nIF(AND(ISBLANK(Tabelle2[[#This Row],[T\n]])),$AB$5,))))))","v":false}]
[67,null,null,null,null,null,null,null,null,null,null,null,null,null,null,null,null,null,null,{"$f":"Tabelle2[[#This Row],[EK Preis brutto/Einheit\n(ohne MwSt)]]*(100%-Tabelle2[[#This Row],[Rabatt %]])","v":0},{"$f":"IF(Tabelle2[[#This Row],[eingebaute Menge]]>0,IF(ISBLANK(Tabelle2[[#This Row],[empfohlene Menge]]),$AA$5,\nIF(AND(ISBLANK(Tabelle2[[#This Row],[C\n]])),\nIF(AND(ISBLANK(Tabelle2[[#This Row],[W\n]])),\nIF(AND(ISBLANK(Tabelle2[[#This Row],[S\n]])),\nIF(AND(ISBLANK(Tabelle2[[#This Row],[T\n]])),$AB$5,))))))","v":false}]
[68,null,null,null,null,null,null,null,null,null,null,null,null,null,null,null,null,null,null,{"$f":"Tabelle2[[#This Row],[EK Preis brutto/Einheit\n(ohne MwSt)]]*(100%-Tabelle2[[#This Row],[Rabatt %]])","v":0},{"$f":"IF(Tabelle2[[#This Row],[eingebaute Menge]]>0,IF(ISBLANK(Tabelle2[[#This Row],[empfohlene Menge]]),$AA$5,\nIF(AND(ISBLANK(Tabelle2[[#This Row],[C\n]])),\nIF(AND(ISBLANK(Tabelle2[[#This Row],[W\n]])),\nIF(AND(ISBLANK(Tabelle2[[#This Row],[S\n]])),\nIF(AND(ISBLANK(Tabelle2[[#This Row],[T\n]])),$AB$5,))))))","v":false}]
[69,null,null,null,null,null,null,null,null,null,null,null,null,null,null,null,null,null,null,{"$f":"Tabelle2[[#This Row],[EK Preis brutto/Einheit\n(ohne MwSt)]]*(100%-Tabelle2[[#This Row],[Rabatt %]])","v":0},{"$f":"IF(Tabelle2[[#This Row],[eingebaute Menge]]>0,IF(ISBLANK(Tabelle2[[#This Row],[empfohlene Menge]]),$AA$5,\nIF(AND(ISBLANK(Tabelle2[[#This Row],[C\n]])),\nIF(AND(ISBLANK(Tabelle2[[#This Row],[W\n]])),\nIF(AND(ISBLANK(Tabelle2[[#This Row],[S\n]])),\nIF(AND(ISBLANK(Tabelle2[[#This Row],[T\n]])),$AB$5,))))))","v":false}]
[70,null,null,null,null,null,null,null,null,null,null,null,null,null,null,null,null,null,null,{"$f":"Tabelle2[[#This Row],[EK Preis brutto/Einheit\n(ohne MwSt)]]*(100%-Tabelle2[[#This Row],[Rabatt %]])","v":0},{"$f":"IF(Tabelle2[[#This Row],[eingebaute Menge]]>0,IF(ISBLANK(Tabelle2[[#This Row],[empfohlene Menge]]),$AA$5,\nIF(AND(ISBLANK(Tabelle2[[#This Row],[C\n]])),\nIF(AND(ISBLANK(Tabelle2[[#This Row],[W\n]])),\nIF(AND(ISBLANK(Tabelle2[[#This Row],[S\n]])),\nIF(AND(ISBLANK(Tabelle2[[#This Row],[T\n]])),$AB$5,))))))","v":false}]
[71,null,null,null,null,null,null,null,null,null,null,null,null,null,null,null,null,null,null,{"$f":"Tabelle2[[#This Row],[EK Preis brutto/Einheit\n(ohne MwSt)]]*(100%-Tabelle2[[#This Row],[Rabatt %]])","v":0},{"$f":"IF(Tabelle2[[#This Row],[eingebaute Menge]]>0,IF(ISBLANK(Tabelle2[[#This Row],[empfohlene Menge]]),$AA$5,\nIF(AND(ISBLANK(Tabelle2[[#This Row],[C\n]])),\nIF(AND(ISBLANK(Tabelle2[[#This Row],[W\n]])),\nIF(AND(ISBLANK(Tabelle2[[#This Row],[S\n]])),\nIF(AND(ISBLANK(Tabelle2[[#This Row],[T\n]])),$AB$5,))))))","v":false}]
[72,null,null,null,null,null,null,null,null,null,null,null,null,null,null,null,null,null,null,{"$f":"Tabelle2[[#This Row],[EK Preis brutto/Einheit\n(ohne MwSt)]]*(100%-Tabelle2[[#This Row],[Rabatt %]])","v":0},{"$f":"IF(Tabelle2[[#This Row],[eingebaute Menge]]>0,IF(ISBLANK(Tabelle2[[#This Row],[empfohlene Menge]]),$AA$5,\nIF(AND(ISBLANK(Tabelle2[[#This Row],[C\n]])),\nIF(AND(ISBLANK(Tabelle2[[#This Row],[W\n]])),\nIF(AND(ISBLANK(Tabelle2[[#This Row],[S\n]])),\nIF(AND(ISBLANK(Tabelle2[[#This Row],[T\n]])),$AB$5,))))))","v":false}]
[73,null,null,null,null,null,null,null,null,null,null,null,null,null,null,null,null,null,null,{"$f":"Tabelle2[[#This Row],[EK Preis brutto/Einheit\n(ohne MwSt)]]*(100%-Tabelle2[[#This Row],[Rabatt %]])","v":0},{"$f":"IF(Tabelle2[[#This Row],[eingebaute Menge]]>0,IF(ISBLANK(Tabelle2[[#This Row],[empfohlene Menge]]),$AA$5,\nIF(AND(ISBLANK(Tabelle2[[#This Row],[C\n]])),\nIF(AND(ISBLANK(Tabelle2[[#This Row],[W\n]])),\nIF(AND(ISBLANK(Tabelle2[[#This Row],[S\n]])),\nIF(AND(ISBLANK(Tabelle2[[#This Row],[T\n]])),$AB$5,))))))","v":false}]
[74,null,null,null,null,null,null,null,null,null,null,null,null,null,null,null,null,null,null,{"$f":"Tabelle2[[#This Row],[EK Preis brutto/Einheit\n(ohne MwSt)]]*(100%-Tabelle2[[#This Row],[Rabatt %]])","v":0},{"$f":"IF(Tabelle2[[#This Row],[eingebaute Menge]]>0,IF(ISBLANK(Tabelle2[[#This Row],[empfohlene Menge]]),$AA$5,\nIF(AND(ISBLANK(Tabelle2[[#This Row],[C\n]])),\nIF(AND(ISBLANK(Tabelle2[[#This Row],[W\n]])),\nIF(AND(ISBLANK(Tabelle2[[#This Row],[S\n]])),\nIF(AND(ISBLANK(Tabelle2[[#This Row],[T\n]])),$AB$5,))))))","v":false}]
[75,null,null,null,null,null,null,null,null,null,null,null,null,null,null,null,null,null,null,{"$f":"Tabelle2[[#This Row],[EK Preis brutto/Einheit\n(ohne MwSt)]]*(100%-Tabelle2[[#This Row],[Rabatt %]])","v":0},{"$f":"IF(Tabelle2[[#This Row],[eingebaute Menge]]>0,IF(ISBLANK(Tabelle2[[#This Row],[empfohlene Menge]]),$AA$5,\nIF(AND(ISBLANK(Tabelle2[[#This Row],[C\n]])),\nIF(AND(ISBLANK(Tabelle2[[#This Row],[W\n]])),\nIF(AND(ISBLANK(Tabelle2[[#This Row],[S\n]])),\nIF(AND(ISBLANK(Tabelle2[[#This Row],[T\n]])),$AB$5,))))))","v":false}]
[76,null,null,null,null,null,null,null,null,null,null,null,null,null,null,null,null,null,null,{"$f":"Tabelle2[[#This Row],[EK Preis brutto/Einheit\n(ohne MwSt)]]*(100%-Tabelle2[[#This Row],[Rabatt %]])","v":0},{"$f":"IF(Tabelle2[[#This Row],[eingebaute Menge]]>0,IF(ISBLANK(Tabelle2[[#This Row],[empfohlene Menge]]),$AA$5,\nIF(AND(ISBLANK(Tabelle2[[#This Row],[C\n]])),\nIF(AND(ISBLANK(Tabelle2[[#This Row],[W\n]])),\nIF(AND(ISBLANK(Tabelle2[[#This Row],[S\n]])),\nIF(AND(ISBLANK(Tabelle2[[#This Row],[T\n]])),$AB$5,))))))","v":false}]
[77,null,null,null,null,null,null,null,null,null,null,null,null,null,null,null,null,null,null,{"$f":"Tabelle2[[#This Row],[EK Preis brutto/Einheit\n(ohne MwSt)]]*(100%-Tabelle2[[#This Row],[Rabatt %]])","v":0},{"$f":"IF(Tabelle2[[#This Row],[eingebaute Menge]]>0,IF(ISBLANK(Tabelle2[[#This Row],[empfohlene Menge]]),$AA$5,\nIF(AND(ISBLANK(Tabelle2[[#This Row],[C\n]])),\nIF(AND(ISBLANK(Tabelle2[[#This Row],[W\n]])),\nIF(AND(ISBLANK(Tabelle2[[#This Row],[S\n]])),\nIF(AND(ISBLANK(Tabelle2[[#This Row],[T\n]])),$AB$5,))))))","v":false}]
[78,null,null,null,null,null,null,null,null,null,null,null,null,null,null,null,null,null,null,{"$f":"Tabelle2[[#This Row],[EK Preis brutto/Einheit\n(ohne MwSt)]]*(100%-Tabelle2[[#This Row],[Rabatt %]])","v":0},{"$f":"IF(Tabelle2[[#This Row],[eingebaute Menge]]>0,IF(ISBLANK(Tabelle2[[#This Row],[empfohlene Menge]]),$AA$5,\nIF(AND(ISBLANK(Tabelle2[[#This Row],[C\n]])),\nIF(AND(ISBLANK(Tabelle2[[#This Row],[W\n]])),\nIF(AND(ISBLANK(Tabelle2[[#This Row],[S\n]])),\nIF(AND(ISBLANK(Tabelle2[[#This Row],[T\n]])),$AB$5,))))))","v":false}]
[79,null,null,null,null,null,null,null,null,null,null,null,null,null,null,null,null,null,null,{"$f":"Tabelle2[[#This Row],[EK Preis brutto/Einheit\n(ohne MwSt)]]*(100%-Tabelle2[[#This Row],[Rabatt %]])","v":0},{"$f":"IF(Tabelle2[[#This Row],[eingebaute Menge]]>0,IF(ISBLANK(Tabelle2[[#This Row],[empfohlene Menge]]),$AA$5,\nIF(AND(ISBLANK(Tabelle2[[#This Row],[C\n]])),\nIF(AND(ISBLANK(Tabelle2[[#This Row],[W\n]])),\nIF(AND(ISBLANK(Tabelle2[[#This Row],[S\n]])),\nIF(AND(ISBLANK(Tabelle2[[#This Row],[T\n]])),$AB$5,))))))","v":false}]
[80,null,null,null,null,null,null,null,null,null,null,null,null,null,null,null,null,null,null,{"$f":"Tabelle2[[#This Row],[EK Preis brutto/Einheit\n(ohne MwSt)]]*(100%-Tabelle2[[#This Row],[Rabatt %]])","v":0},{"$f":"IF(Tabelle2[[#This Row],[eingebaute Menge]]>0,IF(ISBLANK(Tabelle2[[#This Row],[empfohlene Menge]]),$AA$5,\nIF(AND(ISBLANK(Tabelle2[[#This Row],[C\n]])),\nIF(AND(ISBLANK(Tabelle2[[#This Row],[W\n]])),\nIF(AND(ISBLANK(Tabelle2[[#This Row],[S\n]])),\nIF(AND(ISBLANK(Tabelle2[[#This Row],[T\n]])),$AB$5,))))))","v":false}]
[81,null,null,null,null,null,null,null,null,null,null,null,null,null,null,null,null,null,null,{"$f":"Tabelle2[[#This Row],[EK Preis brutto/Einheit\n(ohne MwSt)]]*(100%-Tabelle2[[#This Row],[Rabatt %]])","v":0},{"$f":"IF(Tabelle2[[#This Row],[eingebaute Menge]]>0,IF(ISBLANK(Tabelle2[[#This Row],[empfohlene Menge]]),$AA$5,\nIF(AND(ISBLANK(Tabelle2[[#This Row],[C\n]])),\nIF(AND(ISBLANK(Tabelle2[[#This Row],[W\n]])),\nIF(AND(ISBLANK(Tabelle2[[#This Row],[S\n]])),\nIF(AND(ISBLANK(Tabelle2[[#This Row],[T\n]])),$AB$5,))))))","v":false}]
[82,null,null,null,null,null,null,null,null,null,null,null,null,null,null,null,null,null,null,{"$f":"Tabelle2[[#This Row],[EK Preis brutto/Einheit\n(ohne MwSt)]]*(100%-Tabelle2[[#This Row],[Rabatt %]])","v":0},{"$f":"IF(Tabelle2[[#This Row],[eingebaute Menge]]>0,IF(ISBLANK(Tabelle2[[#This Row],[empfohlene Menge]]),$AA$5,\nIF(AND(ISBLANK(Tabelle2[[#This Row],[C\n]])),\nIF(AND(ISBLANK(Tabelle2[[#This Row],[W\n]])),\nIF(AND(ISBLANK(Tabelle2[[#This Row],[S\n]])),\nIF(AND(ISBLANK(Tabelle2[[#This Row],[T\n]])),$AB$5,))))))","v":false}]
[83,null,null,null,null,null,null,null,null,null,null,null,null,null,null,null,null,null,null,{"$f":"Tabelle2[[#This Row],[EK Preis brutto/Einheit\n(ohne MwSt)]]*(100%-Tabelle2[[#This Row],[Rabatt %]])","v":0},{"$f":"IF(Tabelle2[[#This Row],[eingebaute Menge]]>0,IF(ISBLANK(Tabelle2[[#This Row],[empfohlene Menge]]),$AA$5,\nIF(AND(ISBLANK(Tabelle2[[#This Row],[C\n]])),\nIF(AND(ISBLANK(Tabelle2[[#This Row],[W\n]])),\nIF(AND(ISBLANK(Tabelle2[[#This Row],[S\n]])),\nIF(AND(ISBLANK(Tabelle2[[#This Row],[T\n]])),$AB$5,))))))","v":false}]
[84,null,null,null,null,null,null,null,null,null,null,null,null,null,null,null,null,null,null,{"$f":"Tabelle2[[#This Row],[EK Preis brutto/Einheit\n(ohne MwSt)]]*(100%-Tabelle2[[#This Row],[Rabatt %]])","v":0},{"$f":"IF(Tabelle2[[#This Row],[eingebaute Menge]]>0,IF(ISBLANK(Tabelle2[[#This Row],[empfohlene Menge]]),$AA$5,\nIF(AND(ISBLANK(Tabelle2[[#This Row],[C\n]])),\nIF(AND(ISBLANK(Tabelle2[[#This Row],[W\n]])),\nIF(AND(ISBLANK(Tabelle2[[#This Row],[S\n]])),\nIF(AND(ISBLANK(Tabelle2[[#This Row],[T\n]])),$AB$5,))))))","v":false}]
[85,null,null,null,null,null,null,null,null,null,null,null,null,null,null,null,null,null,null,{"$f":"Tabelle2[[#This Row],[EK Preis brutto/Einheit\n(ohne MwSt)]]*(100%-Tabelle2[[#This Row],[Rabatt %]])","v":0},{"$f":"IF(Tabelle2[[#This Row],[eingebaute Menge]]>0,IF(ISBLANK(Tabelle2[[#This Row],[empfohlene Menge]]),$AA$5,\nIF(AND(ISBLANK(Tabelle2[[#This Row],[C\n]])),\nIF(AND(ISBLANK(Tabelle2[[#This Row],[W\n]])),\nIF(AND(ISBLANK(Tabelle2[[#This Row],[S\n]])),\nIF(AND(ISBLANK(Tabelle2[[#This Row],[T\n]])),$AB$5,))))))","v":false}]
[86,null,null,null,null,null,null,null,null,null,null,null,null,null,null,null,null,null,null,{"$f":"Tabelle2[[#This Row],[EK Preis brutto/Einheit\n(ohne MwSt)]]*(100%-Tabelle2[[#This Row],[Rabatt %]])","v":0},{"$f":"IF(Tabelle2[[#This Row],[eingebaute Menge]]>0,IF(ISBLANK(Tabelle2[[#This Row],[empfohlene Menge]]),$AA$5,\nIF(AND(ISBLANK(Tabelle2[[#This Row],[C\n]])),\nIF(AND(ISBLANK(Tabelle2[[#This Row],[W\n]])),\nIF(AND(ISBLANK(Tabelle2[[#This Row],[S\n]])),\nIF(AND(ISBLANK(Tabelle2[[#This Row],[T\n]])),$AB$5,))))))","v":false}]
[87,null,null,null,null,null,null,null,null,null,null,null,null,null,null,null,null,null,null,{"$f":"Tabelle2[[#This Row],[EK Preis brutto/Einheit\n(ohne MwSt)]]*(100%-Tabelle2[[#This Row],[Rabatt %]])","v":0},{"$f":"IF(Tabelle2[[#This Row],[eingebaute Menge]]>0,IF(ISBLANK(Tabelle2[[#This Row],[empfohlene Menge]]),$AA$5,\nIF(AND(ISBLANK(Tabelle2[[#This Row],[C\n]])),\nIF(AND(ISBLANK(Tabelle2[[#This Row],[W\n]])),\nIF(AND(ISBLANK(Tabelle2[[#This Row],[S\n]])),\nIF(AND(ISBLANK(Tabelle2[[#This Row],[T\n]])),$AB$5,))))))","v":false}]
[88,null,null,null,null,null,null,null,null,null,null,null,null,null,null,null,null,null,null,{"$f":"Tabelle2[[#This Row],[EK Preis brutto/Einheit\n(ohne MwSt)]]*(100%-Tabelle2[[#This Row],[Rabatt %]])","v":0},{"$f":"IF(Tabelle2[[#This Row],[eingebaute Menge]]>0,IF(ISBLANK(Tabelle2[[#This Row],[empfohlene Menge]]),$AA$5,\nIF(AND(ISBLANK(Tabelle2[[#This Row],[C\n]])),\nIF(AND(ISBLANK(Tabelle2[[#This Row],[W\n]])),\nIF(AND(ISBLANK(Tabelle2[[#This Row],[S\n]])),\nIF(AND(ISBLANK(Tabelle2[[#This Row],[T\n]])),$AB$5,))))))","v":false}]
[89,null,null,null,null,null,null,null,null,null,null,null,null,null,null,null,null,null,null,{"$f":"Tabelle2[[#This Row],[EK Preis brutto/Einheit\n(ohne MwSt)]]*(100%-Tabelle2[[#This Row],[Rabatt %]])","v":0},{"$f":"IF(Tabelle2[[#This Row],[eingebaute Menge]]>0,IF(ISBLANK(Tabelle2[[#This Row],[empfohlene Menge]]),$AA$5,\nIF(AND(ISBLANK(Tabelle2[[#This Row],[C\n]])),\nIF(AND(ISBLANK(Tabelle2[[#This Row],[W\n]])),\nIF(AND(ISBLANK(Tabelle2[[#This Row],[S\n]])),\nIF(AND(ISBLANK(Tabelle2[[#This Row],[T\n]])),$AB$5,))))))","v":false}]
[90,null,null,null,null,null,null,null,null,null,null,null,null,null,null,null,null,null,null,{"$f":"Tabelle2[[#This Row],[EK Preis brutto/Einheit\n(ohne MwSt)]]*(100%-Tabelle2[[#This Row],[Rabatt %]])","v":0},{"$f":"IF(Tabelle2[[#This Row],[eingebaute Menge]]>0,IF(ISBLANK(Tabelle2[[#This Row],[empfohlene Menge]]),$AA$5,\nIF(AND(ISBLANK(Tabelle2[[#This Row],[C\n]])),\nIF(AND(ISBLANK(Tabelle2[[#This Row],[W\n]])),\nIF(AND(ISBLANK(Tabelle2[[#This Row],[S\n]])),\nIF(AND(ISBLANK(Tabelle2[[#This Row],[T\n]])),$AB$5,))))))","v":false}]
[91,null,null,null,null,null,null,null,null,null,null,null,null,null,null,null,null,null,null,{"$f":"Tabelle2[[#This Row],[EK Preis brutto/Einheit\n(ohne MwSt)]]*(100%-Tabelle2[[#This Row],[Rabatt %]])","v":0},{"$f":"IF(Tabelle2[[#This Row],[eingebaute Menge]]>0,IF(ISBLANK(Tabelle2[[#This Row],[empfohlene Menge]]),$AA$5,\nIF(AND(ISBLANK(Tabelle2[[#This Row],[C\n]])),\nIF(AND(ISBLANK(Tabelle2[[#This Row],[W\n]])),\nIF(AND(ISBLANK(Tabelle2[[#This Row],[S\n]])),\nIF(AND(ISBLANK(Tabelle2[[#This Row],[T\n]])),$AB$5,))))))","v":false}]
[92,null,null,null,null,null,null,null,null,null,null,null,null,null,null,null,null,null,null,{"$f":"Tabelle2[[#This Row],[EK Preis brutto/Einheit\n(ohne MwSt)]]*(100%-Tabelle2[[#This Row],[Rabatt %]])","v":0},{"$f":"IF(Tabelle2[[#This Row],[eingebaute Menge]]>0,IF(ISBLANK(Tabelle2[[#This Row],[empfohlene Menge]]),$AA$5,\nIF(AND(ISBLANK(Tabelle2[[#This Row],[C\n]])),\nIF(AND(ISBLANK(Tabelle2[[#This Row],[W\n]])),\nIF(AND(ISBLANK(Tabelle2[[#This Row],[S\n]])),\nIF(AND(ISBLANK(Tabelle2[[#This Row],[T\n]])),$AB$5,))))))","v":false}]
[93,null,null,null,null,null,null,null,null,null,null,null,null,null,null,null,null,null,null,{"$f":"Tabelle2[[#This Row],[EK Preis brutto/Einheit\n(ohne MwSt)]]*(100%-Tabelle2[[#This Row],[Rabatt %]])","v":0},{"$f":"IF(Tabelle2[[#This Row],[eingebaute Menge]]>0,IF(ISBLANK(Tabelle2[[#This Row],[empfohlene Menge]]),$AA$5,\nIF(AND(ISBLANK(Tabelle2[[#This Row],[C\n]])),\nIF(AND(ISBLANK(Tabelle2[[#This Row],[W\n]])),\nIF(AND(ISBLANK(Tabelle2[[#This Row],[S\n]])),\nIF(AND(ISBLANK(Tabelle2[[#This Row],[T\n]])),$AB$5,))))))","v":false}]
[94,null,null,null,null,null,null,null,null,null,null,null,null,null,null,null,null,null,null,{"$f":"Tabelle2[[#This Row],[EK Preis brutto/Einheit\n(ohne MwSt)]]*(100%-Tabelle2[[#This Row],[Rabatt %]])","v":0},{"$f":"IF(Tabelle2[[#This Row],[eingebaute Menge]]>0,IF(ISBLANK(Tabelle2[[#This Row],[empfohlene Menge]]),$AA$5,\nIF(AND(ISBLANK(Tabelle2[[#This Row],[C\n]])),\nIF(AND(ISBLANK(Tabelle2[[#This Row],[W\n]])),\nIF(AND(ISBLANK(Tabelle2[[#This Row],[S\n]])),\nIF(AND(ISBLANK(Tabelle2[[#This Row],[T\n]])),$AB$5,))))))","v":false}]
[95,null,null,null,null,null,null,null,null,null,null,null,null,null,null,null,null,null,null,{"$f":"Tabelle2[[#This Row],[EK Preis brutto/Einheit\n(ohne MwSt)]]*(100%-Tabelle2[[#This Row],[Rabatt %]])","v":0},{"$f":"IF(Tabelle2[[#This Row],[eingebaute Menge]]>0,IF(ISBLANK(Tabelle2[[#This Row],[empfohlene Menge]]),$AA$5,\nIF(AND(ISBLANK(Tabelle2[[#This Row],[C\n]])),\nIF(AND(ISBLANK(Tabelle2[[#This Row],[W\n]])),\nIF(AND(ISBLANK(Tabelle2[[#This Row],[S\n]])),\nIF(AND(ISBLANK(Tabelle2[[#This Row],[T\n]])),$AB$5,))))))","v":false}]
[96,null,null,null,null,null,null,null,null,null,null,null,null,null,null,null,null,null,null,{"$f":"Tabelle2[[#This Row],[EK Preis brutto/Einheit\n(ohne MwSt)]]*(100%-Tabelle2[[#This Row],[Rabatt %]])","v":0},{"$f":"IF(Tabelle2[[#This Row],[eingebaute Menge]]>0,IF(ISBLANK(Tabelle2[[#This Row],[empfohlene Menge]]),$AA$5,\nIF(AND(ISBLANK(Tabelle2[[#This Row],[C\n]])),\nIF(AND(ISBLANK(Tabelle2[[#This Row],[W\n]])),\nIF(AND(ISBLANK(Tabelle2[[#This Row],[S\n]])),\nIF(AND(ISBLANK(Tabelle2[[#This Row],[T\n]])),$AB$5,))))))","v":false}]
[97,null,null,null,null,null,null,null,null,null,null,null,null,null,null,null,null,null,null,{"$f":"Tabelle2[[#This Row],[EK Preis brutto/Einheit\n(ohne MwSt)]]*(100%-Tabelle2[[#This Row],[Rabatt %]])","v":0},{"$f":"IF(Tabelle2[[#This Row],[eingebaute Menge]]>0,IF(ISBLANK(Tabelle2[[#This Row],[empfohlene Menge]]),$AA$5,\nIF(AND(ISBLANK(Tabelle2[[#This Row],[C\n]])),\nIF(AND(ISBLANK(Tabelle2[[#This Row],[W\n]])),\nIF(AND(ISBLANK(Tabelle2[[#This Row],[S\n]])),\nIF(AND(ISBLANK(Tabelle2[[#This Row],[T\n]])),$AB$5,))))))","v":false}]
[98,null,null,null,null,null,null,null,null,null,null,null,null,null,null,null,null,null,null,{"$f":"Tabelle2[[#This Row],[EK Preis brutto/Einheit\n(ohne MwSt)]]*(100%-Tabelle2[[#This Row],[Rabatt %]])","v":0},{"$f":"IF(Tabelle2[[#This Row],[eingebaute Menge]]>0,IF(ISBLANK(Tabelle2[[#This Row],[empfohlene Menge]]),$AA$5,\nIF(AND(ISBLANK(Tabelle2[[#This Row],[C\n]])),\nIF(AND(ISBLANK(Tabelle2[[#This Row],[W\n]])),\nIF(AND(ISBLANK(Tabelle2[[#This Row],[S\n]])),\nIF(AND(ISBLANK(Tabelle2[[#This Row],[T\n]])),$AB$5,))))))","v":false}]
[99,null,null,null,null,null,null,null,null,null,null,null,null,null,null,null,null,null,null,{"$f":"Tabelle2[[#This Row],[EK Preis brutto/Einheit\n(ohne MwSt)]]*(100%-Tabelle2[[#This Row],[Rabatt %]])","v":0},{"$f":"IF(Tabelle2[[#This Row],[eingebaute Menge]]>0,IF(ISBLANK(Tabelle2[[#This Row],[empfohlene Menge]]),$AA$5,\nIF(AND(ISBLANK(Tabelle2[[#This Row],[C\n]])),\nIF(AND(ISBLANK(Tabelle2[[#This Row],[W\n]])),\nIF(AND(ISBLANK(Tabelle2[[#This Row],[S\n]])),\nIF(AND(ISBLANK(Tabelle2[[#This Row],[T\n]])),$AB$5,))))))","v":false}]
[100,null,null,null,null,null,null,null,null,null,null,null,null,null,null,null,null,null,null,{"$f":"Tabelle2[[#This Row],[EK Preis brutto/Einheit\n(ohne MwSt)]]*(100%-Tabelle2[[#This Row],[Rabatt %]])","v":0},{"$f":"IF(Tabelle2[[#This Row],[eingebaute Menge]]>0,IF(ISBLANK(Tabelle2[[#This Row],[empfohlene Menge]]),$AA$5,\nIF(AND(ISBLANK(Tabelle2[[#This Row],[C\n]])),\nIF(AND(ISBLANK(Tabelle2[[#This Row],[W\n]])),\nIF(AND(ISBLANK(Tabelle2[[#This Row],[S\n]])),\nIF(AND(ISBLANK(Tabelle2[[#This Row],[T\n]])),$AB$5,))))))","v":false}]
[101,null,null,null,null,null,null,null,null,null,null,null,null,null,null,null,null,null,null,{"$f":"Tabelle2[[#This Row],[EK Preis brutto/Einheit\n(ohne MwSt)]]*(100%-Tabelle2[[#This Row],[Rabatt %]])","v":0},{"$f":"IF(Tabelle2[[#This Row],[eingebaute Menge]]>0,IF(ISBLANK(Tabelle2[[#This Row],[empfohlene Menge]]),$AA$5,\nIF(AND(ISBLANK(Tabelle2[[#This Row],[C\n]])),\nIF(AND(ISBLANK(Tabelle2[[#This Row],[W\n]])),\nIF(AND(ISBLANK(Tabelle2[[#This Row],[S\n]])),\nIF(AND(ISBLANK(Tabelle2[[#This Row],[T\n]])),$AB$5,))))))","v":false}]
[102,null,null,null,null,null,null,null,null,null,null,null,null,null,null,null,null,null,null,{"$f":"Tabelle2[[#This Row],[EK Preis brutto/Einheit\n(ohne MwSt)]]*(100%-Tabelle2[[#This Row],[Rabatt %]])","v":0},{"$f":"IF(Tabelle2[[#This Row],[eingebaute Menge]]>0,IF(ISBLANK(Tabelle2[[#This Row],[empfohlene Menge]]),$AA$5,\nIF(AND(ISBLANK(Tabelle2[[#This Row],[C\n]])),\nIF(AND(ISBLANK(Tabelle2[[#This Row],[W\n]])),\nIF(AND(ISBLANK(Tabelle2[[#This Row],[S\n]])),\nIF(AND(ISBLANK(Tabelle2[[#This Row],[T\n]])),$AB$5,))))))","v":false}]
[103,null,null,null,null,null,null,null,null,null,null,null,null,null,null,null,null,null,null,{"$f":"Tabelle2[[#This Row],[EK Preis brutto/Einheit\n(ohne MwSt)]]*(100%-Tabelle2[[#This Row],[Rabatt %]])","v":0},{"$f":"IF(Tabelle2[[#This Row],[eingebaute Menge]]>0,IF(ISBLANK(Tabelle2[[#This Row],[empfohlene Menge]]),$AA$5,\nIF(AND(ISBLANK(Tabelle2[[#This Row],[C\n]])),\nIF(AND(ISBLANK(Tabelle2[[#This Row],[W\n]])),\nIF(AND(ISBLANK(Tabelle2[[#This Row],[S\n]])),\nIF(AND(ISBLANK(Tabelle2[[#This Row],[T\n]])),$AB$5,))))))","v":false}]
[104,null,null,null,null,null,null,null,null,null,null,null,null,null,null,null,null,null,null,{"$f":"Tabelle2[[#This Row],[EK Preis brutto/Einheit\n(ohne MwSt)]]*(100%-Tabelle2[[#This Row],[Rabatt %]])","v":0},{"$f":"IF(Tabelle2[[#This Row],[eingebaute Menge]]>0,IF(ISBLANK(Tabelle2[[#This Row],[empfohlene Menge]]),$AA$5,\nIF(AND(ISBLANK(Tabelle2[[#This Row],[C\n]])),\nIF(AND(ISBLANK(Tabelle2[[#This Row],[W\n]])),\nIF(AND(ISBLANK(Tabelle2[[#This Row],[S\n]])),\nIF(AND(ISBLANK(Tabelle2[[#This Row],[T\n]])),$AB$5,))))))","v":false}]
[105,null,null,null,null,null,null,null,null,null,null,null,null,null,null,null,null,null,null,{"$f":"Tabelle2[[#This Row],[EK Preis brutto/Einheit\n(ohne MwSt)]]*(100%-Tabelle2[[#This Row],[Rabatt %]])","v":0},{"$f":"IF(Tabelle2[[#This Row],[eingebaute Menge]]>0,IF(ISBLANK(Tabelle2[[#This Row],[empfohlene Menge]]),$AA$5,\nIF(AND(ISBLANK(Tabelle2[[#This Row],[C\n]])),\nIF(AND(ISBLANK(Tabelle2[[#This Row],[W\n]])),\nIF(AND(ISBLANK(Tabelle2[[#This Row],[S\n]])),\nIF(AND(ISBLANK(Tabelle2[[#This Row],[T\n]])),$AB$5,))))))","v":false}]
[106,null,null,null,null,null,null,null,null,null,null,null,null,null,null,null,null,null,null,{"$f":"Tabelle2[[#This Row],[EK Preis brutto/Einheit\n(ohne MwSt)]]*(100%-Tabelle2[[#This Row],[Rabatt %]])","v":0},{"$f":"IF(Tabelle2[[#This Row],[eingebaute Menge]]>0,IF(ISBLANK(Tabelle2[[#This Row],[empfohlene Menge]]),$AA$5,\nIF(AND(ISBLANK(Tabelle2[[#This Row],[C\n]])),\nIF(AND(ISBLANK(Tabelle2[[#This Row],[W\n]])),\nIF(AND(ISBLANK(Tabelle2[[#This Row],[S\n]])),\nIF(AND(ISBLANK(Tabelle2[[#This Row],[T\n]])),$AB$5,))))))","v":false}]
[107,null,null,null,null,null,null,null,null,null,null,null,null,null,null,null,null,null,null,{"$f":"Tabelle2[[#This Row],[EK Preis brutto/Einheit\n(ohne MwSt)]]*(100%-Tabelle2[[#This Row],[Rabatt %]])","v":0},{"$f":"IF(Tabelle2[[#This Row],[eingebaute Menge]]>0,IF(ISBLANK(Tabelle2[[#This Row],[empfohlene Menge]]),$AA$5,\nIF(AND(ISBLANK(Tabelle2[[#This Row],[C\n]])),\nIF(AND(ISBLANK(Tabelle2[[#This Row],[W\n]])),\nIF(AND(ISBLANK(Tabelle2[[#This Row],[S\n]])),\nIF(AND(ISBLANK(Tabelle2[[#This Row],[T\n]])),$AB$5,))))))","v":false}]
[108,null,null,null,null,null,null,null,null,null,null,null,null,null,null,null,null,null,null,{"$f":"Tabelle2[[#This Row],[EK Preis brutto/Einheit\n(ohne MwSt)]]*(100%-Tabelle2[[#This Row],[Rabatt %]])","v":0},{"$f":"IF(Tabelle2[[#This Row],[eingebaute Menge]]>0,IF(ISBLANK(Tabelle2[[#This Row],[empfohlene Menge]]),$AA$5,\nIF(AND(ISBLANK(Tabelle2[[#This Row],[C\n]])),\nIF(AND(ISBLANK(Tabelle2[[#This Row],[W\n]])),\nIF(AND(ISBLANK(Tabelle2[[#This Row],[S\n]])),\nIF(AND(ISBLANK(Tabelle2[[#This Row],[T\n]])),$AB$5,))))))","v":false}]
[109,null,null,null,null,null,null,null,null,null,null,null,null,null,null,null,null,null,null,{"$f":"Tabelle2[[#This Row],[EK Preis brutto/Einheit\n(ohne MwSt)]]*(100%-Tabelle2[[#This Row],[Rabatt %]])","v":0},{"$f":"IF(Tabelle2[[#This Row],[eingebaute Menge]]>0,IF(ISBLANK(Tabelle2[[#This Row],[empfohlene Menge]]),$AA$5,\nIF(AND(ISBLANK(Tabelle2[[#This Row],[C\n]])),\nIF(AND(ISBLANK(Tabelle2[[#This Row],[W\n]])),\nIF(AND(ISBLANK(Tabelle2[[#This Row],[S\n]])),\nIF(AND(ISBLANK(Tabelle2[[#This Row],[T\n]])),$AB$5,))))))","v":false}]
[110,null,null,null,null,null,null,null,null,null,null,null,null,null,null,null,null,null,null,{"$f":"Tabelle2[[#This Row],[EK Preis brutto/Einheit\n(ohne MwSt)]]*(100%-Tabelle2[[#This Row],[Rabatt %]])","v":0},{"$f":"IF(Tabelle2[[#This Row],[eingebaute Menge]]>0,IF(ISBLANK(Tabelle2[[#This Row],[empfohlene Menge]]),$AA$5,\nIF(AND(ISBLANK(Tabelle2[[#This Row],[C\n]])),\nIF(AND(ISBLANK(Tabelle2[[#This Row],[W\n]])),\nIF(AND(ISBLANK(Tabelle2[[#This Row],[S\n]])),\nIF(AND(ISBLANK(Tabelle2[[#This Row],[T\n]])),$AB$5,))))))","v":false}]
[111,null,null,null,null,null,null,null,null,null,null,null,null,null,null,null,null,null,null,{"$f":"Tabelle2[[#This Row],[EK Preis brutto/Einheit\n(ohne MwSt)]]*(100%-Tabelle2[[#This Row],[Rabatt %]])","v":0},{"$f":"IF(Tabelle2[[#This Row],[eingebaute Menge]]>0,IF(ISBLANK(Tabelle2[[#This Row],[empfohlene Menge]]),$AA$5,\nIF(AND(ISBLANK(Tabelle2[[#This Row],[C\n]])),\nIF(AND(ISBLANK(Tabelle2[[#This Row],[W\n]])),\nIF(AND(ISBLANK(Tabelle2[[#This Row],[S\n]])),\nIF(AND(ISBLANK(Tabelle2[[#This Row],[T\n]])),$AB$5,))))))","v":false}]
[112,null,null,null,null,null,null,null,null,null,null,null,null,null,null,null,null,null,null,{"$f":"Tabelle2[[#This Row],[EK Preis brutto/Einheit\n(ohne MwSt)]]*(100%-Tabelle2[[#This Row],[Rabatt %]])","v":0},{"$f":"IF(Tabelle2[[#This Row],[eingebaute Menge]]>0,IF(ISBLANK(Tabelle2[[#This Row],[empfohlene Menge]]),$AA$5,\nIF(AND(ISBLANK(Tabelle2[[#This Row],[C\n]])),\nIF(AND(ISBLANK(Tabelle2[[#This Row],[W\n]])),\nIF(AND(ISBLANK(Tabelle2[[#This Row],[S\n]])),\nIF(AND(ISBLANK(Tabelle2[[#This Row],[T\n]])),$AB$5,))))))","v":false}]
[113,null,null,null,null,null,null,null,null,null,null,null,null,null,null,null,null,null,null,{"$f":"Tabelle2[[#This Row],[EK Preis brutto/Einheit\n(ohne MwSt)]]*(100%-Tabelle2[[#This Row],[Rabatt %]])","v":0},{"$f":"IF(Tabelle2[[#This Row],[eingebaute Menge]]>0,IF(ISBLANK(Tabelle2[[#This Row],[empfohlene Menge]]),$AA$5,\nIF(AND(ISBLANK(Tabelle2[[#This Row],[C\n]])),\nIF(AND(ISBLANK(Tabelle2[[#This Row],[W\n]])),\nIF(AND(ISBLANK(Tabelle2[[#This Row],[S\n]])),\nIF(AND(ISBLANK(Tabelle2[[#This Row],[T\n]])),$AB$5,))))))","v":false}]
[114,null,null,null,null,null,null,null,null,null,null,null,null,null,null,null,null,null,null,{"$f":"Tabelle2[[#This Row],[EK Preis brutto/Einheit\n(ohne MwSt)]]*(100%-Tabelle2[[#This Row],[Rabatt %]])","v":0},{"$f":"IF(Tabelle2[[#This Row],[eingebaute Menge]]>0,IF(ISBLANK(Tabelle2[[#This Row],[empfohlene Menge]]),$AA$5,\nIF(AND(ISBLANK(Tabelle2[[#This Row],[C\n]])),\nIF(AND(ISBLANK(Tabelle2[[#This Row],[W\n]])),\nIF(AND(ISBLANK(Tabelle2[[#This Row],[S\n]])),\nIF(AND(ISBLANK(Tabelle2[[#This Row],[T\n]])),$AB$5,))))))","v":false}]
[115,null,null,null,null,null,null,null,null,null,null,null,null,null,null,null,null,null,null,{"$f":"Tabelle2[[#This Row],[EK Preis brutto/Einheit\n(ohne MwSt)]]*(100%-Tabelle2[[#This Row],[Rabatt %]])","v":0},{"$f":"IF(Tabelle2[[#This Row],[eingebaute Menge]]>0,IF(ISBLANK(Tabelle2[[#This Row],[empfohlene Menge]]),$AA$5,\nIF(AND(ISBLANK(Tabelle2[[#This Row],[C\n]])),\nIF(AND(ISBLANK(Tabelle2[[#This Row],[W\n]])),\nIF(AND(ISBLANK(Tabelle2[[#This Row],[S\n]])),\nIF(AND(ISBLANK(Tabelle2[[#This Row],[T\n]])),$AB$5,))))))","v":false}]
[116,null,null,null,null,null,null,null,null,null,null,null,null,null,null,null,null,null,null,{"$f":"Tabelle2[[#This Row],[EK Preis brutto/Einheit\n(ohne MwSt)]]*(100%-Tabelle2[[#This Row],[Rabatt %]])","v":0},{"$f":"IF(Tabelle2[[#This Row],[eingebaute Menge]]>0,IF(ISBLANK(Tabelle2[[#This Row],[empfohlene Menge]]),$AA$5,\nIF(AND(ISBLANK(Tabelle2[[#This Row],[C\n]])),\nIF(AND(ISBLANK(Tabelle2[[#This Row],[W\n]])),\nIF(AND(ISBLANK(Tabelle2[[#This Row],[S\n]])),\nIF(AND(ISBLANK(Tabelle2[[#This Row],[T\n]])),$AB$5,))))))","v":false}]
[117,null,null,null,null,null,null,null,null,null,null,null,null,null,null,null,null,null,null,{"$f":"Tabelle2[[#This Row],[EK Preis brutto/Einheit\n(ohne MwSt)]]*(100%-Tabelle2[[#This Row],[Rabatt %]])","v":0},{"$f":"IF(Tabelle2[[#This Row],[eingebaute Menge]]>0,IF(ISBLANK(Tabelle2[[#This Row],[empfohlene Menge]]),$AA$5,\nIF(AND(ISBLANK(Tabelle2[[#This Row],[C\n]])),\nIF(AND(ISBLANK(Tabelle2[[#This Row],[W\n]])),\nIF(AND(ISBLANK(Tabelle2[[#This Row],[S\n]])),\nIF(AND(ISBLANK(Tabelle2[[#This Row],[T\n]])),$AB$5,))))))","v":false}]
[118,null,null,null,null,null,null,null,null,null,null,null,null,null,null,null,null,null,null,{"$f":"Tabelle2[[#This Row],[EK Preis brutto/Einheit\n(ohne MwSt)]]*(100%-Tabelle2[[#This Row],[Rabatt %]])","v":0},{"$f":"IF(Tabelle2[[#This Row],[eingebaute Menge]]>0,IF(ISBLANK(Tabelle2[[#This Row],[empfohlene Menge]]),$AA$5,\nIF(AND(ISBLANK(Tabelle2[[#This Row],[C\n]])),\nIF(AND(ISBLANK(Tabelle2[[#This Row],[W\n]])),\nIF(AND(ISBLANK(Tabelle2[[#This Row],[S\n]])),\nIF(AND(ISBLANK(Tabelle2[[#This Row],[T\n]])),$AB$5,))))))","v":false}]
[119,null,null,null,null,null,null,null,null,null,null,null,null,null,null,null,null,null,null,{"$f":"Tabelle2[[#This Row],[EK Preis brutto/Einheit\n(ohne MwSt)]]*(100%-Tabelle2[[#This Row],[Rabatt %]])","v":0},{"$f":"IF(Tabelle2[[#This Row],[eingebaute Menge]]>0,IF(ISBLANK(Tabelle2[[#This Row],[empfohlene Menge]]),$AA$5,\nIF(AND(ISBLANK(Tabelle2[[#This Row],[C\n]])),\nIF(AND(ISBLANK(Tabelle2[[#This Row],[W\n]])),\nIF(AND(ISBLANK(Tabelle2[[#This Row],[S\n]])),\nIF(AND(ISBLANK(Tabelle2[[#This Row],[T\n]])),$AB$5,))))))","v":false}]
[120,null,null,null,null,null,null,null,null,null,null,null,null,null,null,null,null,null,null,{"$f":"Tabelle2[[#This Row],[EK Preis brutto/Einheit\n(ohne MwSt)]]*(100%-Tabelle2[[#This Row],[Rabatt %]])","v":0},{"$f":"IF(Tabelle2[[#This Row],[eingebaute Menge]]>0,IF(ISBLANK(Tabelle2[[#This Row],[empfohlene Menge]]),$AA$5,\nIF(AND(ISBLANK(Tabelle2[[#This Row],[C\n]])),\nIF(AND(ISBLANK(Tabelle2[[#This Row],[W\n]])),\nIF(AND(ISBLANK(Tabelle2[[#This Row],[S\n]])),\nIF(AND(ISBLANK(Tabelle2[[#This Row],[T\n]])),$AB$5,))))))","v":false}]
[121,null,null,null,null,null,null,null,null,null,null,null,null,null,null,null,null,null,null,{"$f":"Tabelle2[[#This Row],[EK Preis brutto/Einheit\n(ohne MwSt)]]*(100%-Tabelle2[[#This Row],[Rabatt %]])","v":0},{"$f":"IF(Tabelle2[[#This Row],[eingebaute Menge]]>0,IF(ISBLANK(Tabelle2[[#This Row],[empfohlene Menge]]),$AA$5,\nIF(AND(ISBLANK(Tabelle2[[#This Row],[C\n]])),\nIF(AND(ISBLANK(Tabelle2[[#This Row],[W\n]])),\nIF(AND(ISBLANK(Tabelle2[[#This Row],[S\n]])),\nIF(AND(ISBLANK(Tabelle2[[#This Row],[T\n]])),$AB$5,))))))","v":false}]
[122,null,null,null,null,null,null,null,null,null,null,null,null,null,null,null,null,null,null,{"$f":"Tabelle2[[#This Row],[EK Preis brutto/Einheit\n(ohne MwSt)]]*(100%-Tabelle2[[#This Row],[Rabatt %]])","v":0},{"$f":"IF(Tabelle2[[#This Row],[eingebaute Menge]]>0,IF(ISBLANK(Tabelle2[[#This Row],[empfohlene Menge]]),$AA$5,\nIF(AND(ISBLANK(Tabelle2[[#This Row],[C\n]])),\nIF(AND(ISBLANK(Tabelle2[[#This Row],[W\n]])),\nIF(AND(ISBLANK(Tabelle2[[#This Row],[S\n]])),\nIF(AND(ISBLANK(Tabelle2[[#This Row],[T\n]])),$AB$5,))))))","v":false}]